Workbook

Sheet Anexo Cuantitativo
D1: FORMATO DE REPORTES TRIMESTRALES
B4: REPORTES TRIMESTRALES AVANCE CUANTITATIVO Y CUALITATIVO
B5: NOMBRE DE LA SECRETARIA: | D5: INMUJERES
B6: NOMBRE DE LA DIRECCIÓN O JEFATURA: | D6: Políticas Publicas
B7: TRIMESTRE REPORTADO: | D7: DEL 01 DE ABRIL AL 30 DE JUNIO DEL 2026
B8: REGISTRO DE AVANCES DE PBR 2025-2026
C10: NOMBRE DE LA PROPUESTA | D10: DIMENSIÓN A MEDIR (Eficiencia/Eficacia/ Economía/Calidad) | E10: Nombre Indicador (Indicador Operativo) | F10: UNIDAD DE MEDIDA | G10: LÍNEA BASE | H10: META ANUAL (ABSOLUTA) | I10: AVANCE 1 | J10: AVANCE 2 | K10: AVANCE 3 | L10: AVANCE 4 | M10: AVANCE ACUMULADO EN PORCENTAJE | N10: NOTAS,COMENTARIOS O CORRECCIONES QUE NECESITEN HACER
I11: Primer Trimestre (octubre-diciembre 2025) | J11: Segundo Trimestre (enero-marzo 2026) | K11: Tercer Trimestre (abril-junio 2026) | L11: Cuarto Trimestre (julio-septiembre 2026)
B12: 1 | C12: =IFERROR(VLOOKUP($D$5&$D$6&B12,'Pbr''s'!B:W,5,0)," ") -> Acciones Para Una Vida Libre De Violencia | D12: Eficacia | E12: =IFERROR(VLOOKUP($D$5&$D$6&B12&C12,'Pbr''s'!A:W,7,0)," ") -> Porcentaje De Atenciones De Primer Contacto, Realizadas | F12: =IFERROR(VLOOKUP($D$5&$D$6&B12&C12,'Pbr''s'!A:W,8,0)," ") -> Número De Atenciones Realizadas | G12: =IFERROR(VLOOKUP($D$5&$D$6&B12&C12,'Pbr''s'!A:W,9,0)," ") -> 430 | H12: =IFERROR(VLOOKUP($D$5&$D$6&B12&C12,'Pbr''s'!A:W,10,0)," ") -> 500 | I12: 117 | J12: 147 | K12: 79 | M12: =(SUM(I12:L12)/H12) -> 0.686
B13: DESCRIPCIÓN DE LAS ACTIVIDADES REALIZADAS (REDACTAR SÓLO LO REALIZADO EN TIEMPO PASADO) | C13: Narrativa de trimestre Octubre-Diciembre: | D13: Durante el periodo que se reporta, el Instituto brindó 117 atenciones de primer contacto, las cuales se desarrollaron bajo un enfoque de atención integral, garantizando el acceso a asesoría jurídica, atención psicológica y acompañamiento de trabajo social. Estas acciones permitieron identificar oportunamente las necesidades específicas de cada usuaria, así como establecer rutas de atención y canalización adecuadas. El resultado contribuye al fortalecimiento del acceso a servicios especializados y a la protección de los derechos de las mujeres atendidas.
C14: Narrativa de trimestre Enero-marzo: | D14: Durante el periodo que se reporta, el Instituto brindó 147 atenciones de primer contacto, mismas que se desarrollaron bajo un enfoque de atención integral, garantizando el acceso a asesoría jurídica, atención psicológica y acompañamiento de trabajo social. Estas acciones permitieron identificar de manera oportuna las necesidades específicas de cada usuaria, así como establecer rutas de atención y canalización adecuadas. El resultado contribuye al fortalecimiento del acceso a servicios especializados y a la protección de los derechos de las mujeres atendidas.
C15: Narrativa de trimestre Abril-junio: | D15: Durante el periodo que se reporta, el Instituto brindó 79 atenciones de primer contacto, mismas que se desarrollaron bajo un enfoque de atención integral, garantizando el acceso a asesoría jurídica, atención psicológica y acompañamiento de trabajo social. Estas acciones permitieron identificar de manera oportuna las necesidades específicas de cada usuaria, así como establecer rutas de atención y canalización adecuadas. El resultado contribuye al fortalecimiento del acceso a servicios especializados y a la protección de los derechos de las mujeres atendidas.
C16: Narrativa de trimestre Julio-sept:
B17: 2 | C17: =IFERROR(VLOOKUP($D$5&$D$6&B17,'Pbr''s'!B:W,5,0)," ") -> Acciones Para Una Vida Libre De Violencia | D17: Eficacia | E17: =IFERROR(VLOOKUP($D$5&$D$6&B17&C17,'Pbr''s'!A:W,7,0)," ") -> Porcentaje De Acciones De Prevención De La Violencia De Género En La Comunidad, Realizadas | F17: =IFERROR(VLOOKUP($D$5&$D$6&B17&C17,'Pbr''s'!A:W,8,0)," ") -> Número De Acciones Realizadas | G17: =IFERROR(VLOOKUP($D$5&$D$6&B17&C17,'Pbr''s'!A:W,9,0)," ") -> 40 | H17: =IFERROR(VLOOKUP($D$5&$D$6&B17&C17,'Pbr''s'!A:W,10,0)," ") -> 45 | I17: 10 | J17: 13 | K17: 7 | M17: =(SUM(I17:L17)/H17) -> 0.6666666667
B18: DESCRIPCIÓN DE LAS ACTIVIDADES REALIZADAS (REDACTAR SÓLO LO REALIZADO EN TIEMPO PASADO) | C18: Narrativa de trimestre Octubre-Diciembre: | D18: Durante el periodo que se reporta se llevaron a cabo 10 acciones de prevención de la violencia de género, mediante capacitaciones y actividades comunitarias con enfoque preventivo y de sensibilización. Estas acciones consistieron en: 1) la participación constante del Instituto en las Ferias de Paz realizadas en diversas comunidades de San Pedro Tlaquepaque; 2) la participación permanente en la Mesa de Género de la Secretaría de Gobernación, que sesiona de manera semanal; 3) una charla sobre consentimiento dirigida al estudiantado de la Preparatoria Santa Anita; 4) la realización de un taller masivo de defensa personal en el marco del 25 de noviembre (25N); 5) la actividad “Niñas por un mundo libre de violencia” en la Primaria Vicente Guerrero; 6) un taller de defensa personal en la delegación Las Juntas; 7) un taller de defensa personal en Toluquilla; 8) un taller mencionado en San Martín de las Flores; 9) una capacitación sobre violencia de género dirigida a personal de la Subdirección de Profesionalización y Acreditación Policial; y 10) talleres de defensa personal en las delegaciones de Tateposco y Santa Anita. En conjunto, estas acciones contribuyeron al fortalecimiento de la prevención primaria y al impacto comunitario del Instituto en la reducción de factores de riesgo asociados a la violencia de género.
C19: Narrativa de trimestre Enero-marzo: | D19: Durante el periodo que se reporta, se llevaron a cabo 13 acciones de prevención de la violencia de género en la comunidad, orientadas a la sensibilización y fortalecimiento de capacidades en distintos sectores. Destacan 9 intervenciones dirigidas a personal de la Secretaría de Seguridad y Protección Ciudadana, abordando temas como feminicidio, violencia de género, violencia familiar y violencia sexual en espacios públicos. Asimismo, se realizaron actividades en la Universidad UNIVER, la empresa AMPM y la empresa Arrow, así como en la Preparatoria Regional de Santa Anita de la UdeG, abordando temas como rutas de atención ante la violencia, tipos y modalidades de violencia, defensa personal, amor romántico y violencias invisibles. De igual forma, al interior del Instituto se impartió capacitación en materia de violencia de género, contribuyendo al fortalecimiento institucional y comunitario en la prevención de estas problemáticas.
C20: Narrativa de trimestre Abril-junio: | D20: Durante el periodo que se reporta, se llevaron a cabo 7 acciones de prevención de la violencia de género en la comunidad. Destacando intervenciones a Cadetes de la subsecretaria de profesionalización y acreditación policial, empresa Lavartex y Coca cola sede Toluquilla con inteligencia emocional y resilencia, límites en las relaciones, los si los no, los nunca:hablemos del consentimiento. Asimismo se realizaron actividades en colonias con el tema de Autoestima y amor propio, el amor también se cuida, salud emocional de mamá en las colonias de Lomas de San Miguel, Campesino, Cofradía y el cerro del cuatro con el objetivo de seguir las estrategias de prevención de las violencias de género.
C21: Narrativa de trimestre Julio-sept:
B22: 3 | C22: =IFERROR(VLOOKUP($D$5&$D$6&B22,'Pbr''s'!B:W,5,0)," ") -> Acciones Para Una Vida Libre De Violencia | D22: Eficacia | E22: =IFERROR(VLOOKUP($D$5&$D$6&B22&C22,'Pbr''s'!A:W,7,0)," ") -> Porcentaje De Personas Beneficiadas Con Las Acciones De Prevención, Atención Y Profesionalización En Materia De Violencia Contra Las Mujeres. | F22: =IFERROR(VLOOKUP($D$5&$D$6&B22&C22,'Pbr''s'!A:W,8,0)," ") -> Número De Personas Beneficiarias | G22: =IFERROR(VLOOKUP($D$5&$D$6&B22&C22,'Pbr''s'!A:W,9,0)," ") -> 1500 | H22: =IFERROR(VLOOKUP($D$5&$D$6&B22&C22,'Pbr''s'!A:W,10,0)," ") -> 2500 | I22: 890 | J22: 448 | K22: 472 | M22: =(SUM(I22:L22)/H22) -> 0.724
B23: DESCRIPCIÓN DE LAS ACTIVIDADES REALIZADAS (REDACTAR SÓLO LO REALIZADO EN TIEMPO PASADO) | C23: Narrativa de trimestre Octubre-Diciembre: | D23: En atención al indicador “Porcentaje de Personas Beneficiadas con las Acciones de Prevención, Atención y Profesionalización en Materia de Violencia contra las Mujeres”, durante el periodo que se reporta se registró un total de 890 personas beneficiadas. Este resultado se deriva de la implementación de 10 acciones de prevención de la violencia de género, entre ellas la participación en Ferias de Paz, la intervención permanente en la Mesa de Género de la Secretaría de Gobernación, talleres y charlas en centros educativos, capacitaciones a personal policial y actividades comunitarias de defensa personal, incluyendo el evento masivo realizado en el marco del 25 de noviembre. A este impacto se suman las mujeres usuarias atendidas en el servicio de primer contacto, quienes recibieron atención integral por parte del Instituto, fortaleciendo la sensibilización, la prevención y el acceso a servicios especializados.
C24: Narrativa de trimestre Enero-marzo: | D24: Durante el periodo que se reporta, se registró un total de 449 personas beneficiadas a través de acciones de prevención, atención y profesionalización en materia de violencia contra las mujeres. Este resultado integra tanto la participación en capacitaciones y actividades de sensibilización en temas de violencia de género, como la atención brindada a 147 usuarias mediante servicios de primer contacto. Lo anterior contribuye al fortalecimiento de capacidades comunitarias e institucionales, así como al acceso oportuno a servicios especializados para la atención de la violencia contra las mujeres.
C25: Narrativa de trimestre Abril-junio: | D25: Durante el periodo que se reporta , se registró un total de 472 personas beneficiadas a través de acciones de prevención, atención y profesionalización en materia de violencia contra las mujeres. Este resultado integra tanto la participación en capacitaciones y actividades de sensibilización en temas de violencia de género, como la atención brindada a 79 usuarias mediante servicios de primer contacto. Lo anterior contribuye al fortalecimiento de capacidades comunitarias e institucionales, así como al acceso oportuno a servicios especializados para la atención de la violencia contra las mujeres.
C26: Narrativa de trimestre Julio-sept:
B27: 4 | C27: =IFERROR(VLOOKUP($D$5&$D$6&B27,'Pbr''s'!B:W,5,0)," ") -> Acciones Para Una Vida Libre De Violencia | D27: Eficacia | E27: =IFERROR(VLOOKUP($D$5&$D$6&B27&C27,'Pbr''s'!A:W,7,0)," ") -> Porcentaje De Eventos Conmemorativos De Fechas O Acciones Contra La Violencia De Género, Realizados | F27: =IFERROR(VLOOKUP($D$5&$D$6&B27&C27,'Pbr''s'!A:W,8,0)," ") -> Número De Eventos Realizados | G27: =IFERROR(VLOOKUP($D$5&$D$6&B27&C27,'Pbr''s'!A:W,9,0)," ") -> 1 | H27: =IFERROR(VLOOKUP($D$5&$D$6&B27&C27,'Pbr''s'!A:W,10,0)," ") -> 1 | I27: 1 | J27: 0 | K27: 0 | M27: =(SUM(I27:L27)/H27) -> 1
B28: DESCRIPCIÓN DE LAS ACTIVIDADES REALIZADAS (REDACTAR SÓLO LO REALIZADO EN TIEMPO PASADO) | C28: Narrativa de trimestre Octubre-Diciembre: | D28: En el marco de las acciones de prevención de las violencias contra las mujeres, se llevó a cabo un evento conmemorativo del 25 de noviembre, consistente en una clase masiva de defensa personal, orientada a fortalecer las capacidades de autoprotección y la confianza de las participantes. Esta actividad tuvo como objetivo sensibilizar, prevenir y promover herramientas prácticas para la seguridad personal, contribuyendo a la construcción de entornos más seguros. La acción se enmarca en la estrategia institucional de prevención primaria y comunitaria de la violencia de género.
C29: Narrativa de trimestre Enero-marzo: | D29: Durante este periodo no aplica, ya que nuestro evento se realiza en marco del 25 de noviembre dia de la erradiación de la violencia contra las mujeres y niñas.
C30: Narrativa de trimestre Abril-junio: | D30: Durante este periodo no aplica, ya que nuestro evento se realiza en marco del 25 de noviembre dia de la erradiación de la violencia contra las mujeres y niñas.
C31: Narrativa de trimestre Julio-sept:
B32: 5 | C32: =IFERROR(VLOOKUP($D$5&$D$6&B32,'Pbr''s'!B:W,5,0)," ") -> Acciones Por La Igualdad Sustantiva | D32: Eficacia | E32: =IFERROR(VLOOKUP($D$5&$D$6&B32&C32,'Pbr''s'!A:W,7,0)," ") -> Porcentaje De Personas Beneficiadas Por Las Acciones De Promoción | F32: =IFERROR(VLOOKUP($D$5&$D$6&B32&C32,'Pbr''s'!A:W,8,0)," ") -> Número De Personas Beneficiadas | G32: =IFERROR(VLOOKUP($D$5&$D$6&B32&C32,'Pbr''s'!A:W,9,0)," ") -> 1500 | H32: =IFERROR(VLOOKUP($D$5&$D$6&B32&C32,'Pbr''s'!A:W,10,0)," ") -> 2500 | I32: 1011 | J32: 548 | K32: 393 | M32: =(SUM(I32:L32)/H32) -> 0.7808
B33: DESCRIPCIÓN DE LAS ACTIVIDADES REALIZADAS (REDACTAR SÓLO LO REALIZADO EN TIEMPO PASADO) | C33: Narrativa de trimestre Octubre-Diciembre: | D33: En relación con el indicador “Porcentaje de Personas Beneficiadas por las Acciones de Promoción”, durante el periodo que se informa el área de Capacitación impactó a un total de 1,011 personas, mediante la implementación de acciones formativas dirigidas a la promoción de la igualdad, la prevención de las violencias y el fortalecimiento de capacidades comunitarias. Asimismo, se realizó la actualización del catálogo de capacitación, incorporando temáticas de interés para la población de San Pedro Tlaquepaque, lo que permitió asegurar la pertinencia social de los contenidos y ampliar el alcance de las acciones institucionales.
C34: Narrativa de trimestre Enero-marzo: | D34: Durante el periodo que se reporta, se registró un total de 548 personas beneficiadas a través de acciones de promoción en materia de prevención de la violencia contra las mujeres, derivadas del trabajo del área de capacitación. Estas acciones se desarrollaron en espacios comunitarios, educativos e institucionales mediante ferias de la paz, actividades lúdicas, rallies, así como dinámicas de sensibilización, que permitieron acercar información a la población sobre igualdad de género, derechos de las mujeres y prevención de la violencia. Asimismo, se abordaron temáticas como perspectiva de género, relaciones sanas, amor romántico, construcción de la identidad, consentimiento y autonomía, fomentando la reflexión y el reconocimiento de conductas que pueden derivar en violencia. Estas acciones contribuyen al fortalecimiento de una cultura preventiva, al promover entornos más informados, participativos y conscientes dentro de la comunidad.
C35: Narrativa de trimestre Abril-junio: | D35: Durante el periodo que se presenta, se registro un total 393 personas beneficiadas a través de acciones en materia de prevención de la violencia contra las mujeres, estas acciones se abordan en centros educativos e institucionales mediante ferias de la paz, mesas de trabajo, que permiten informar a la población, sobre de igualdad de género, derechos de las mujeres y prevención de la violencia.
C36: Narrativa de trimestre Julio-sept:
B37: 6 | C37: =IFERROR(VLOOKUP($D$5&$D$6&B37,'Pbr''s'!B:W,5,0)," ") -> Acciones Por La Igualdad Sustantiva | D37: Eficacia | E37: =IFERROR(VLOOKUP($D$5&$D$6&B37&C37,'Pbr''s'!A:W,7,0)," ") -> Porcentaje De Eventos Conmemorativos Para Promover Y Reconocer Los Derechos De Las Mujeres En Su Diversidad, Realizados | F37: =IFERROR(VLOOKUP($D$5&$D$6&B37&C37,'Pbr''s'!A:W,8,0)," ") -> Número De Eventos Realizados | G37: =IFERROR(VLOOKUP($D$5&$D$6&B37&C37,'Pbr''s'!A:W,9,0)," ") -> 1 | H37: =IFERROR(VLOOKUP($D$5&$D$6&B37&C37,'Pbr''s'!A:W,10,0)," ") -> 1 | I37: 0 | J37: 1 | K37: 0 | M37: =(SUM(I37:L37)/H37) -> 1
B38: DESCRIPCIÓN DE LAS ACTIVIDADES REALIZADAS (REDACTAR SÓLO LO REALIZADO EN TIEMPO PASADO) | C38: Narrativa de trimestre Octubre-Diciembre: | D38: No hubo eventos conmemorativos este trismestre, dado que el evento principal que el instituto realiza para esto se lleva a cabo en marzo.
C39: Narrativa de trimestre Enero-marzo: | D39: En el marco del 8 de marzo, Día Internacional de las Mujeres, se llevó a cabo en la delegación de San Martín de las Flores (1) un acto simbólico de iluminación del edificio delegacional y el kiosco de la plaza principal. Esta acción tuvo como objetivo visibilizar la conmemoración y promover la reflexión colectiva sobre la importancia de los derechos de las mujeres. Asimismo, se fortaleció la presencia institucional en el territorio mediante actividades de sensibilización dirigidas a la comunidad.
C40: Narrativa de trimestre Abril-junio: | D40: No hubo eventos conmemorativos este trismestre, dado que el evento principal que el instituto se llevo a cabo en marzo.
C41: Narrativa de trimestre Julio-sept:
B42: 7 | C42: =IFERROR(VLOOKUP($D$5&$D$6&B42,'Pbr''s'!B:W,5,0)," ") -> Visión Transversal De La Perspectiva De Género. | D42: Eficacia | E42: =IFERROR(VLOOKUP($D$5&$D$6&B42&C42,'Pbr''s'!A:W,7,0)," ") -> Porcentaje De Acciones Con Perspectiva De Género Reportadas. | F42: =IFERROR(VLOOKUP($D$5&$D$6&B42&C42,'Pbr''s'!A:W,8,0)," ") -> Número De Acciones Reportadas | G42: =IFERROR(VLOOKUP($D$5&$D$6&B42&C42,'Pbr''s'!A:W,9,0)," ") -> 30 | H42: =IFERROR(VLOOKUP($D$5&$D$6&B42&C42,'Pbr''s'!A:W,10,0)," ") -> 35 | I42: 9 | J42: 12 | K42: 8 | M42: =(SUM(I42:L42)/H42) -> 0.8285714286
B43: DESCRIPCIÓN DE LAS ACTIVIDADES REALIZADAS (REDACTAR SÓLO LO REALIZADO EN TIEMPO PASADO) | C43: Narrativa de trimestre Octubre-Diciembre: | D43: En relación con el indicador “Porcentaje de Acciones con Perspectiva de Género Reportadas”, durante el periodo evaluado se implementaron y reportaron 9 acciones con enfoque de género, las cuales fueron: (1) el taller Niñas por la Igualdad; (2) la charla Un minuto de prevención, una vida de esperanza realizada en CUA Tlaquepaque de la Universidad de Guadalajara; (3) la misma charla impartida en la Universidad Tecnológica de Guadalajara (UTEG); (4) el taller de Desarrollo Humano en la Preparatoria 22; (5) el taller de Sororidad en la empresa Lavartex; (6) el taller de Desarrollo Humano en la Secundaria 91; (7) la capacitación en Perspectiva de Género en la Subdirección de Profesionalización y Acreditación Policial; (8) el taller de Roles y Estereotipos de Género en la misma Subdirección; y (9) la campaña de difusión de los servicios del Instituto en el Hospital de PEMEX Tlaquepaque. Estas acciones fortalecen la transversalización de la perspectiva de género en ámbitos educativos, laborales, comunitarios, institucionales y de salud, así como la coordinación interinstitucional para la prevención y atención de las violencias contra las mujeres.
C44: Narrativa de trimestre Enero-marzo: | D44: En relación con el indicador, durante el periodo de enero a marzo se implementaron y reportaron 12 acciones con enfoque de género, las cuales fueron: Actuar con perspectiva de género, Construcción de identidad, Sororidad y Affidamento, Acciones a seguir en casos de violencia de género.
C45: Narrativa de trimestre Abril-junio: | D45: En atención con el indicador, se implementaron y reportaron 8 acciones con enfoque de género, las cuales fueron: Hostigamiento y acoso sexual impartida en la empresa AMPM Y DIMEO,Límites en las relaciones en la empresa Lavartex, Prevención del Feminicidio a cadetes, Violencia Dígital a la empresa Lavartex y Masculinidades en Cecytej Plantel San Pedro Tlaquepaque
C46: Narrativa de trimestre Julio-sept:
B47: 8 | C47: =IFERROR(VLOOKUP($D$5&$D$6&B47,'Pbr''s'!B:W,5,0)," ") -> Visión Transversal De La Perspectiva De Género. | D47: Eficacia | E47: =IFERROR(VLOOKUP($D$5&$D$6&B47&C47,'Pbr''s'!A:W,7,0)," ") -> Porcentaje De Mujeres Beneficiadas Por Incorporación De Perspectiva De Género. | F47: =IFERROR(VLOOKUP($D$5&$D$6&B47&C47,'Pbr''s'!A:W,8,0)," ") -> Número De Mujeres Beneficiadas | G47: =IFERROR(VLOOKUP($D$5&$D$6&B47&C47,'Pbr''s'!A:W,9,0)," ") -> 1500 | H47: =IFERROR(VLOOKUP($D$5&$D$6&B47&C47,'Pbr''s'!A:W,10,0)," ") -> 1500 | I47: 238 | J47: 811 | K47: 271 | M47: =(SUM(I47:L47)/H47) -> 0.88
B48: DESCRIPCIÓN DE LAS ACTIVIDADES REALIZADAS (REDACTAR SÓLO LO REALIZADO EN TIEMPO PASADO) | C48: Narrativa de trimestre Octubre-Diciembre: | D48: En atención al indicador “Porcentaje de Mujeres Beneficiadas por Incorporación de Perspectiva de Género”, durante el periodo que se reporta se benefició a un total de 238 mujeres, a través de la implementación de eventos, talleres y capacitaciones organizadas por el Instituto. Estas acciones abordaron temas como perspectiva de género, roles y estereotipos, desarrollo humano y derechos humanos de las mujeres, contribuyendo al fortalecimiento de capacidades, la reflexión crítica y la promoción de la igualdad sustantiva, así como a la prevención de las violencias de género en distintos ámbitos de la vida social.
C49: Narrativa de trimestre Enero-marzo: | D49: En relación con el indicador, durante el periodo enero–marzo 2026 se benefició a 811 mujeres a través de las acciones de prevención y promoción implementadas por el IMMIST. Estas mujeres participaron en actividades como nuestro evento conmemorativo del 8M, capacitaciones en relaciones sanas, consentimiento y autonomía, defensa personal, sororidad, así como en Ferias de la Paz, rallies científicos, conversatorios y actividades de sensibilización comunitaria, desarrolladas en colonias, instituciones educativas, empresas y espacios institucionales del municipio de San Pedro Tlaquepaque. Estas acciones fortalecen el ejercicio pleno de los derechos de las mujeres, la prevención de las violencias y la transversalización de la perspectiva de género en los distintos ámbitos de la vida pública y comunitaria.
C50: Narrativa de trimestre Abril-junio: | D50: En atención con el indicador, se benefició a 271 mujeres a traves de las acciones de prevención y promoción implementadas por el IMMIST. Estas mujeres participaron en capacitaciones como, ferias de la paz y actividades de sensibilización, desarrolladas en colonias, instituciones educativas, empresas y espacios institucionales del municipio de San Pedro Tlaquepaque.
C51: Narrativa de trimestre Julio-sept:
B52: 9 | C52: =IFERROR(VLOOKUP($D$5&$D$6&B52,'Pbr''s'!B:W,5,0)," ") ->  | E52: =IFERROR(VLOOKUP($D$5&$D$6&B52&C52,'Pbr''s'!A:W,7,0)," ") ->  | F52: =IFERROR(VLOOKUP($D$5&$D$6&B52&C52,'Pbr''s'!A:W,8,0)," ") ->  | G52: =IFERROR(VLOOKUP($D$5&$D$6&B52&C52,'Pbr''s'!A:W,9,0)," ") ->  | H52: =IFERROR(VLOOKUP($D$5&$D$6&B52&C52,'Pbr''s'!A:W,10,0)," ") ->  | M52: =(SUM(I52:L52)/H52) -> 
B53: DESCRIPCIÓN DE LAS ACTIVIDADES REALIZADAS (REDACTAR SÓLO LO REALIZADO EN TIEMPO PASADO) | C53: Narrativa de trimestre Octubre-Diciembre:
C54: Narrativa de trimestre Enero-marzo:
C55: Narrativa de trimestre Abril-junio:
C56: Narrativa de trimestre Julio-sept:
B57: 10 | C57: =IFERROR(VLOOKUP($D$5&$D$6&B57,'Pbr''s'!B:W,5,0)," ") ->  | E57: =IFERROR(VLOOKUP($D$5&$D$6&B57&C57,'Pbr''s'!A:W,7,0)," ") ->  | F57: =IFERROR(VLOOKUP($D$5&$D$6&B57&C57,'Pbr''s'!A:W,8,0)," ") ->  | G57: =IFERROR(VLOOKUP($D$5&$D$6&B57&C57,'Pbr''s'!A:W,9,0)," ") ->  | H57: =IFERROR(VLOOKUP($D$5&$D$6&B57&C57,'Pbr''s'!A:W,10,0)," ") ->  | M57: =(SUM(I57:L57)/H57) -> 
B58: DESCRIPCIÓN DE LAS ACTIVIDADES REALIZADAS (REDACTAR SÓLO LO REALIZADO EN TIEMPO PASADO) | C58: Narrativa de trimestre Octubre-Diciembre:
C59: Narrativa de trimestre Enero-marzo:
C60: Narrativa de trimestre Abril-junio:
C61: Narrativa de trimestre Julio-sept:
B62: 11 | C62: =IFERROR(VLOOKUP($D$5&$D$6&B62,'Pbr''s'!B:W,5,0)," ") ->  | E62: =IFERROR(VLOOKUP($D$5&$D$6&B62&C62,'Pbr''s'!A:W,7,0)," ") ->  | F62: =IFERROR(VLOOKUP($D$5&$D$6&B62&C62,'Pbr''s'!A:W,8,0)," ") ->  | G62: =IFERROR(VLOOKUP($D$5&$D$6&B62&C62,'Pbr''s'!A:W,9,0)," ") ->  | H62: =IFERROR(VLOOKUP($D$5&$D$6&B62&C62,'Pbr''s'!A:W,10,0)," ") ->  | M62: =(SUM(I62:L62)/H62) -> 
B63: DESCRIPCIÓN DE LAS ACTIVIDADES REALIZADAS (REDACTAR SÓLO LO REALIZADO EN TIEMPO PASADO) | C63: Narrativa de trimestre Octubre-Diciembre:
C64: Narrativa de trimestre Enero-marzo:
C65: Narrativa de trimestre Abril-junio:
C66: Narrativa de trimestre Julio-sept:
B67: 16 | C67: =IFERROR(VLOOKUP($D$5&$D$6&B67,'Pbr''s'!B:W,5,0)," ") ->  | E67: =IFERROR(VLOOKUP($D$5&$D$6&B67&C67,'Pbr''s'!A:W,7,0)," ") ->  | F67: =IFERROR(VLOOKUP($D$5&$D$6&B67&C67,'Pbr''s'!A:W,8,0)," ") ->  | G67: =IFERROR(VLOOKUP($D$5&$D$6&B67&C67,'Pbr''s'!A:W,9,0)," ") ->  | H67: =IFERROR(VLOOKUP($D$5&$D$6&B67&C67,'Pbr''s'!A:W,10,0)," ") ->  | M67: =(SUM(I67:L67)/H67) -> 
B68: DESCRIPCIÓN DE LAS ACTIVIDADES REALIZADAS (REDACTAR SÓLO LO REALIZADO EN TIEMPO PASADO) | C68: Narrativa de trimestre Octubre-Diciembre:
C69: Narrativa de trimestre Enero-marzo:
C70: Narrativa de trimestre Abril-junio:
C71: Narrativa de trimestre Julio-sept:
B72: 21 | C72: =IFERROR(VLOOKUP($D$5&$D$6&B72,'Pbr''s'!B:W,5,0)," ") ->  | E72: =IFERROR(VLOOKUP($D$5&$D$6&B72&C72,'Pbr''s'!A:W,7,0)," ") ->  | F72: =IFERROR(VLOOKUP($D$5&$D$6&B72&C72,'Pbr''s'!A:W,8,0)," ") ->  | G72: =IFERROR(VLOOKUP($D$5&$D$6&B72&C72,'Pbr''s'!A:W,9,0)," ") ->  | H72: =IFERROR(VLOOKUP($D$5&$D$6&B72&C72,'Pbr''s'!A:W,10,0)," ") ->  | M72: =(SUM(I72:L72)/H72) -> 
B73: DESCRIPCIÓN DE LAS ACTIVIDADES REALIZADAS (REDACTAR SÓLO LO REALIZADO EN TIEMPO PASADO) | C73: Narrativa de trimestre Octubre-Diciembre:
C74: Narrativa de trimestre Enero-marzo:
C75: Narrativa de trimestre Abril-junio:
C76: Narrativa de trimestre Julio-sept:
B77: 22 | C77: =IFERROR(VLOOKUP($D$5&$D$6&B77,'Pbr''s'!B:W,5,0)," ") ->  | E77: =IFERROR(VLOOKUP($D$5&$D$6&B77&C77,'Pbr''s'!A:W,7,0)," ") ->  | F77: =IFERROR(VLOOKUP($D$5&$D$6&B77&C77,'Pbr''s'!A:W,8,0)," ") ->  | G77: =IFERROR(VLOOKUP($D$5&$D$6&B77&C77,'Pbr''s'!A:W,9,0)," ") ->  | H77: =IFERROR(VLOOKUP($D$5&$D$6&B77&C77,'Pbr''s'!A:W,10,0)," ") ->  | M77: =(SUM(I77:L77)/H77) -> 
B78: DESCRIPCIÓN DE LAS ACTIVIDADES REALIZADAS (REDACTAR SÓLO LO REALIZADO EN TIEMPO PASADO) | C78: Narrativa de trimestre Octubre-Diciembre:
C79: Narrativa de trimestre Enero-marzo:
C80: Narrativa de trimestre Abril-junio:
C81: Narrativa de trimestre Julio-sept:
B82: 23 | C82: =IFERROR(VLOOKUP($D$5&$D$6&B82,'Pbr''s'!B:W,5,0)," ") ->  | E82: =IFERROR(VLOOKUP($D$5&$D$6&B82&C82,'Pbr''s'!A:W,7,0)," ") ->  | F82: =IFERROR(VLOOKUP($D$5&$D$6&B82&C82,'Pbr''s'!A:W,8,0)," ") ->  | G82: =IFERROR(VLOOKUP($D$5&$D$6&B82&C82,'Pbr''s'!A:W,9,0)," ") ->  | H82: =IFERROR(VLOOKUP($D$5&$D$6&B82&C82,'Pbr''s'!A:W,10,0)," ") ->  | M82: =(SUM(I82:L82)/H82) -> 
B83: DESCRIPCIÓN DE LAS ACTIVIDADES REALIZADAS (REDACTAR SÓLO LO REALIZADO EN TIEMPO PASADO) | C83: Narrativa de trimestre Octubre-Diciembre:
C84: Narrativa de trimestre Enero-marzo:
C85: Narrativa de trimestre Abril-junio:
C86: Narrativa de trimestre Julio-sept:
B87: 24 | C87: =IFERROR(VLOOKUP($D$5&$D$6&B87,'Pbr''s'!B:W,5,0)," ") ->  | E87: =IFERROR(VLOOKUP($D$5&$D$6&B87&C87,'Pbr''s'!A:W,7,0)," ") ->  | F87: =IFERROR(VLOOKUP($D$5&$D$6&B87&C87,'Pbr''s'!A:W,8,0)," ") ->  | G87: =IFERROR(VLOOKUP($D$5&$D$6&B87&C87,'Pbr''s'!A:W,9,0)," ") ->  | H87: =IFERROR(VLOOKUP($D$5&$D$6&B87&C87,'Pbr''s'!A:W,10,0)," ") ->  | M87: =(SUM(I87:L87)/H87) -> 
B88: DESCRIPCIÓN DE LAS ACTIVIDADES REALIZADAS (REDACTAR SÓLO LO REALIZADO EN TIEMPO PASADO) | C88: Narrativa de trimestre Octubre-Diciembre:
C89: Narrativa de trimestre Enero-marzo:
C90: Narrativa de trimestre Abril-junio:
C91: Narrativa de trimestre Julio-sept:
B92: 25 | C92: =IFERROR(VLOOKUP($D$5&$D$6&B92,'Pbr''s'!B:W,5,0)," ") ->  | E92: =IFERROR(VLOOKUP($D$5&$D$6&B92&C92,'Pbr''s'!A:W,7,0)," ") ->  | F92: =IFERROR(VLOOKUP($D$5&$D$6&B92&C92,'Pbr''s'!A:W,8,0)," ") ->  | G92: =IFERROR(VLOOKUP($D$5&$D$6&B92&C92,'Pbr''s'!A:W,9,0)," ") ->  | H92: =IFERROR(VLOOKUP($D$5&$D$6&B92&C92,'Pbr''s'!A:W,10,0)," ") ->  | M92: =(SUM(I92:L92)/H92) -> 
B93: DESCRIPCIÓN DE LAS ACTIVIDADES REALIZADAS (REDACTAR SÓLO LO REALIZADO EN TIEMPO PASADO) | C93: Narrativa de trimestre Octubre-Diciembre:
C94: Narrativa de trimestre Enero-marzo:
C95: Narrativa de trimestre Abril-junio:
C96: Narrativa de trimestre Julio-sept:
B97: 26 | C97: =IFERROR(VLOOKUP($D$5&$D$6&B97,'Pbr''s'!B:W,5,0)," ") ->  | E97: =IFERROR(VLOOKUP($D$5&$D$6&B97&C97,'Pbr''s'!A:W,7,0)," ") ->  | F97: =IFERROR(VLOOKUP($D$5&$D$6&B97&C97,'Pbr''s'!A:W,8,0)," ") ->  | G97: =IFERROR(VLOOKUP($D$5&$D$6&B97&C97,'Pbr''s'!A:W,9,0)," ") ->  | H97: =IFERROR(VLOOKUP($D$5&$D$6&B97&C97,'Pbr''s'!A:W,10,0)," ") ->  | M97: =(SUM(I97:L97)/H97) -> 
B98: DESCRIPCIÓN DE LAS ACTIVIDADES REALIZADAS (REDACTAR SÓLO LO REALIZADO EN TIEMPO PASADO) | C98: Narrativa de trimestre Octubre-Diciembre:
C99: Narrativa de trimestre Enero-marzo:
C100: Narrativa de trimestre Abril-junio:
C101: Narrativa de trimestre Julio-sept:
B102: 27 | C102: =IFERROR(VLOOKUP($D$5&$D$6&B102,'Pbr''s'!B:W,5,0)," ") ->  | E102: =IFERROR(VLOOKUP($D$5&$D$6&B102&C102,'Pbr''s'!A:W,7,0)," ") ->  | F102: =IFERROR(VLOOKUP($D$5&$D$6&B102&C102,'Pbr''s'!A:W,8,0)," ") ->  | G102: =IFERROR(VLOOKUP($D$5&$D$6&B102&C102,'Pbr''s'!A:W,9,0)," ") ->  | H102: =IFERROR(VLOOKUP($D$5&$D$6&B102&C102,'Pbr''s'!A:W,10,0)," ") ->  | M102: =(SUM(I102:L102)/H102) -> 
B103: DESCRIPCIÓN DE LAS ACTIVIDADES REALIZADAS (REDACTAR SÓLO LO REALIZADO EN TIEMPO PASADO) | C103: Narrativa de trimestre Octubre-Diciembre:
C104: Narrativa de trimestre Enero-marzo:
C105: Narrativa de trimestre Abril-junio:
C106: Narrativa de trimestre Julio-sept:
B107: 28 | C107: =IFERROR(VLOOKUP($D$5&$D$6&B107,'Pbr''s'!B:W,5,0)," ") ->  | E107: =IFERROR(VLOOKUP($D$5&$D$6&B107&C107,'Pbr''s'!A:W,7,0)," ") ->  | F107: =IFERROR(VLOOKUP($D$5&$D$6&B107&C107,'Pbr''s'!A:W,8,0)," ") ->  | G107: =IFERROR(VLOOKUP($D$5&$D$6&B107&C107,'Pbr''s'!A:W,9,0)," ") ->  | H107: =IFERROR(VLOOKUP($D$5&$D$6&B107&C107,'Pbr''s'!A:W,10,0)," ") ->  | M107: =(SUM(I107:L107)/H107) -> 
B108: DESCRIPCIÓN DE LAS ACTIVIDADES REALIZADAS (REDACTAR SÓLO LO REALIZADO EN TIEMPO PASADO) | C108: Narrativa de trimestre Octubre-Diciembre:
C109: Narrativa de trimestre Enero-marzo:
C110: Narrativa de trimestre Abril-junio:
C111: Narrativa de trimestre Julio-sept:
B112: 29 | C112: =IFERROR(VLOOKUP($D$5&$D$6&B112,'Pbr''s'!B:W,5,0)," ") ->  | E112: =IFERROR(VLOOKUP($D$5&$D$6&B112&C112,'Pbr''s'!A:W,7,0)," ") ->  | F112: =IFERROR(VLOOKUP($D$5&$D$6&B112&C112,'Pbr''s'!A:W,8,0)," ") ->  | G112: =IFERROR(VLOOKUP($D$5&$D$6&B112&C112,'Pbr''s'!A:W,9,0)," ") ->  | H112: =IFERROR(VLOOKUP($D$5&$D$6&B112&C112,'Pbr''s'!A:W,10,0)," ") ->  | M112: =(SUM(I112:L112)/H112) -> 
B113: DESCRIPCIÓN DE LAS ACTIVIDADES REALIZADAS (REDACTAR SÓLO LO REALIZADO EN TIEMPO PASADO) | C113: Narrativa de trimestre Octubre-Diciembre:
C114: Narrativa de trimestre Enero-marzo:
C115: Narrativa de trimestre Abril-junio:
C116: Narrativa de trimestre Julio-sept:
B117: 30 | C117: =IFERROR(VLOOKUP($D$5&$D$6&B117,'Pbr''s'!B:W,5,0)," ") ->  | E117: =IFERROR(VLOOKUP($D$5&$D$6&B117&C117,'Pbr''s'!A:W,7,0)," ") ->  | F117: =IFERROR(VLOOKUP($D$5&$D$6&B117&C117,'Pbr''s'!A:W,8,0)," ") ->  | G117: =IFERROR(VLOOKUP($D$5&$D$6&B117&C117,'Pbr''s'!A:W,9,0)," ") ->  | H117: =IFERROR(VLOOKUP($D$5&$D$6&B117&C117,'Pbr''s'!A:W,10,0)," ") ->  | M117: =(SUM(I117:L117)/H117) -> 
B118: DESCRIPCIÓN DE LAS ACTIVIDADES REALIZADAS (REDACTAR SÓLO LO REALIZADO EN TIEMPO PASADO) | C118: Narrativa de trimestre Octubre-Diciembre:
C119: Narrativa de trimestre Enero-marzo:
C120: Narrativa de trimestre Abril-junio:
C121: Narrativa de trimestre Julio-sept:
B122: 31 | C122: =IFERROR(VLOOKUP($D$5&$D$6&B122,'Pbr''s'!B:W,5,0)," ") ->  | E122: =IFERROR(VLOOKUP($D$5&$D$6&B122&C122,'Pbr''s'!A:W,7,0)," ") ->  | F122: =IFERROR(VLOOKUP($D$5&$D$6&B122&C122,'Pbr''s'!A:W,8,0)," ") ->  | G122: =IFERROR(VLOOKUP($D$5&$D$6&B122&C122,'Pbr''s'!A:W,9,0)," ") ->  | H122: =IFERROR(VLOOKUP($D$5&$D$6&B122&C122,'Pbr''s'!A:W,10,0)," ") ->  | M122: =(SUM(I122:L122)/H122) -> 
B123: DESCRIPCIÓN DE LAS ACTIVIDADES REALIZADAS (REDACTAR SÓLO LO REALIZADO EN TIEMPO PASADO) | C123: Narrativa de trimestre Octubre-Diciembre:
C124: Narrativa de trimestre Enero-marzo:
C125: Narrativa de trimestre Abril-junio:
C126: Narrativa de trimestre Julio-sept:
B127: 32 | C127: =IFERROR(VLOOKUP($D$5&$D$6&B127,'Pbr''s'!B:W,5,0)," ") ->  | E127: =IFERROR(VLOOKUP($D$5&$D$6&B127&C127,'Pbr''s'!A:W,7,0)," ") ->  | F127: =IFERROR(VLOOKUP($D$5&$D$6&B127&C127,'Pbr''s'!A:W,8,0)," ") ->  | G127: =IFERROR(VLOOKUP($D$5&$D$6&B127&C127,'Pbr''s'!A:W,9,0)," ") ->  | H127: =IFERROR(VLOOKUP($D$5&$D$6&B127&C127,'Pbr''s'!A:W,10,0)," ") ->  | M127: =(SUM(I127:L127)/H127) -> 
B128: DESCRIPCIÓN DE LAS ACTIVIDADES REALIZADAS (REDACTAR SÓLO LO REALIZADO EN TIEMPO PASADO) | C128: Narrativa de trimestre Octubre-Diciembre:
C129: Narrativa de trimestre Enero-marzo:
C130: Narrativa de trimestre Abril-junio:
C131: Narrativa de trimestre Julio-sept:
B132: 33 | C132: =IFERROR(VLOOKUP($D$5&$D$6&B132,'Pbr''s'!B:W,5,0)," ") ->  | E132: =IFERROR(VLOOKUP($D$5&$D$6&B132&C132,'Pbr''s'!A:W,7,0)," ") ->  | F132: =IFERROR(VLOOKUP($D$5&$D$6&B132&C132,'Pbr''s'!A:W,8,0)," ") ->  | G132: =IFERROR(VLOOKUP($D$5&$D$6&B132&C132,'Pbr''s'!A:W,9,0)," ") ->  | H132: =IFERROR(VLOOKUP($D$5&$D$6&B132&C132,'Pbr''s'!A:W,10,0)," ") ->  | M132: =(SUM(I132:L132)/H132) -> 
B133: DESCRIPCIÓN DE LAS ACTIVIDADES REALIZADAS (REDACTAR SÓLO LO REALIZADO EN TIEMPO PASADO) | C133: Narrativa de trimestre Octubre-Diciembre:
C134: Narrativa de trimestre Enero-marzo:
C135: Narrativa de trimestre Abril-junio:
C136: Narrativa de trimestre Julio-sept:
B137: 34 | C137: =IFERROR(VLOOKUP($D$5&$D$6&B137,'Pbr''s'!B:W,5,0)," ") ->  | E137: =IFERROR(VLOOKUP($D$5&$D$6&B137&C137,'Pbr''s'!A:W,7,0)," ") ->  | F137: =IFERROR(VLOOKUP($D$5&$D$6&B137&C137,'Pbr''s'!A:W,8,0)," ") ->  | G137: =IFERROR(VLOOKUP($D$5&$D$6&B137&C137,'Pbr''s'!A:W,9,0)," ") ->  | H137: =IFERROR(VLOOKUP($D$5&$D$6&B137&C137,'Pbr''s'!A:W,10,0)," ") ->  | M137: =(SUM(I137:L137)/H137) -> 
B138: DESCRIPCIÓN DE LAS ACTIVIDADES REALIZADAS (REDACTAR SÓLO LO REALIZADO EN TIEMPO PASADO) | C138: Narrativa de trimestre Octubre-Diciembre:
C139: Narrativa de trimestre Enero-marzo:
C140: Narrativa de trimestre Abril-junio:
C141: Narrativa de trimestre Julio-sept:
B142: 35 | C142: =IFERROR(VLOOKUP($D$5&$D$6&B142,'Pbr''s'!B:W,5,0)," ") ->  | E142: =IFERROR(VLOOKUP($D$5&$D$6&B142&C142,'Pbr''s'!A:W,7,0)," ") ->  | F142: =IFERROR(VLOOKUP($D$5&$D$6&B142&C142,'Pbr''s'!A:W,8,0)," ") ->  | G142: =IFERROR(VLOOKUP($D$5&$D$6&B142&C142,'Pbr''s'!A:W,9,0)," ") ->  | H142: =IFERROR(VLOOKUP($D$5&$D$6&B142&C142,'Pbr''s'!A:W,10,0)," ") ->  | M142: =(SUM(I142:L142)/H142) -> 
B143: DESCRIPCIÓN DE LAS ACTIVIDADES REALIZADAS (REDACTAR SÓLO LO REALIZADO EN TIEMPO PASADO) | C143: Narrativa de trimestre Octubre-Diciembre:
C144: Narrativa de trimestre Enero-marzo:
C145: Narrativa de trimestre Abril-junio:
C146: Narrativa de trimestre Julio-sept:
B147: 36 | C147: =IFERROR(VLOOKUP($D$5&$D$6&B147,'Pbr''s'!B:W,5,0)," ") ->  | E147: =IFERROR(VLOOKUP($D$5&$D$6&B147&C147,'Pbr''s'!A:W,7,0)," ") ->  | F147: =IFERROR(VLOOKUP($D$5&$D$6&B147&C147,'Pbr''s'!A:W,8,0)," ") ->  | G147: =IFERROR(VLOOKUP($D$5&$D$6&B147&C147,'Pbr''s'!A:W,9,0)," ") ->  | H147: =IFERROR(VLOOKUP($D$5&$D$6&B147&C147,'Pbr''s'!A:W,10,0)," ") ->  | M147: =(SUM(I147:L147)/H147) -> 
B148: DESCRIPCIÓN DE LAS ACTIVIDADES REALIZADAS (REDACTAR SÓLO LO REALIZADO EN TIEMPO PASADO) | C148: Narrativa de trimestre Octubre-Diciembre:
C149: Narrativa de trimestre Enero-marzo:
C150: Narrativa de trimestre Abril-junio:
C151: Narrativa de trimestre Julio-sept:
B152: 37 | C152: =IFERROR(VLOOKUP($D$5&$D$6&B152,'Pbr''s'!B:W,5,0)," ") ->  | E152: =IFERROR(VLOOKUP($D$5&$D$6&B152&C152,'Pbr''s'!A:W,7,0)," ") ->  | F152: =IFERROR(VLOOKUP($D$5&$D$6&B152&C152,'Pbr''s'!A:W,8,0)," ") ->  | G152: =IFERROR(VLOOKUP($D$5&$D$6&B152&C152,'Pbr''s'!A:W,9,0)," ") ->  | H152: =IFERROR(VLOOKUP($D$5&$D$6&B152&C152,'Pbr''s'!A:W,10,0)," ") ->  | M152: =(SUM(I152:L152)/H152) -> 
B153: DESCRIPCIÓN DE LAS ACTIVIDADES REALIZADAS (REDACTAR SÓLO LO REALIZADO EN TIEMPO PASADO) | C153: Narrativa de trimestre Octubre-Diciembre:
C154: Narrativa de trimestre Enero-marzo:
C155: Narrativa de trimestre Abril-junio:
C156: Narrativa de trimestre Julio-sept:
B157: 38 | C157: =IFERROR(VLOOKUP($D$5&$D$6&B157,'Pbr''s'!B:W,5,0)," ") ->  | E157: =IFERROR(VLOOKUP($D$5&$D$6&B157&C157,'Pbr''s'!A:W,7,0)," ") ->  | F157: =IFERROR(VLOOKUP($D$5&$D$6&B157&C157,'Pbr''s'!A:W,8,0)," ") ->  | G157: =IFERROR(VLOOKUP($D$5&$D$6&B157&C157,'Pbr''s'!A:W,9,0)," ") ->  | H157: =IFERROR(VLOOKUP($D$5&$D$6&B157&C157,'Pbr''s'!A:W,10,0)," ") ->  | M157: =(SUM(I157:L157)/H157) -> 
B158: DESCRIPCIÓN DE LAS ACTIVIDADES REALIZADAS (REDACTAR SÓLO LO REALIZADO EN TIEMPO PASADO) | C158: Narrativa de trimestre Octubre-Diciembre:
C159: Narrativa de trimestre Enero-marzo:
C160: Narrativa de trimestre Abril-junio:
C161: Narrativa de trimestre Julio-sept:
B162: 39 | C162: =IFERROR(VLOOKUP($D$5&$D$6&B162,'Pbr''s'!B:W,5,0)," ") ->  | E162: =IFERROR(VLOOKUP($D$5&$D$6&B162&C162,'Pbr''s'!A:W,7,0)," ") ->  | F162: =IFERROR(VLOOKUP($D$5&$D$6&B162&C162,'Pbr''s'!A:W,8,0)," ") ->  | G162: =IFERROR(VLOOKUP($D$5&$D$6&B162&C162,'Pbr''s'!A:W,9,0)," ") ->  | H162: =IFERROR(VLOOKUP($D$5&$D$6&B162&C162,'Pbr''s'!A:W,10,0)," ") ->  | M162: =(SUM(I162:L162)/H162) -> 
B163: DESCRIPCIÓN DE LAS ACTIVIDADES REALIZADAS (REDACTAR SÓLO LO REALIZADO EN TIEMPO PASADO) | C163: Narrativa de trimestre Octubre-Diciembre:
C164: Narrativa de trimestre Enero-marzo:
C165: Narrativa de trimestre Abril-junio:
C166: Narrativa de trimestre Julio-sept:
B167: 40 | C167: =IFERROR(VLOOKUP($D$5&$D$6&B167,'Pbr''s'!B:W,5,0)," ") ->  | E167: =IFERROR(VLOOKUP($D$5&$D$6&B167&C167,'Pbr''s'!A:W,7,0)," ") ->  | F167: =IFERROR(VLOOKUP($D$5&$D$6&B167&C167,'Pbr''s'!A:W,8,0)," ") ->  | G167: =IFERROR(VLOOKUP($D$5&$D$6&B167&C167,'Pbr''s'!A:W,9,0)," ") ->  | H167: =IFERROR(VLOOKUP($D$5&$D$6&B167&C167,'Pbr''s'!A:W,10,0)," ") ->  | M167: =(SUM(I167:L167)/H167) -> 
B168: DESCRIPCIÓN DE LAS ACTIVIDADES REALIZADAS (REDACTAR SÓLO LO REALIZADO EN TIEMPO PASADO) | C168: Narrativa de trimestre Octubre-Diciembre:
C169: Narrativa de trimestre Enero-marzo:
C170: Narrativa de trimestre Abril-junio:
C171: Narrativa de trimestre Julio-sept:
B172: 41 | C172: =IFERROR(VLOOKUP($D$5&$D$6&B172,'Pbr''s'!B:W,5,0)," ") ->  | E172: =IFERROR(VLOOKUP($D$5&$D$6&B172&C172,'Pbr''s'!A:W,7,0)," ") ->  | F172: =IFERROR(VLOOKUP($D$5&$D$6&B172&C172,'Pbr''s'!A:W,8,0)," ") ->  | G172: =IFERROR(VLOOKUP($D$5&$D$6&B172&C172,'Pbr''s'!A:W,9,0)," ") ->  | H172: =IFERROR(VLOOKUP($D$5&$D$6&B172&C172,'Pbr''s'!A:W,10,0)," ") ->  | M172: =(SUM(I172:L172)/H172) -> 
B173: DESCRIPCIÓN DE LAS ACTIVIDADES REALIZADAS (REDACTAR SÓLO LO REALIZADO EN TIEMPO PASADO) | C173: Narrativa de trimestre Octubre-Diciembre:
C174: Narrativa de trimestre Enero-marzo:
C175: Narrativa de trimestre Abril-junio:
C176: Narrativa de trimestre Julio-sept:
B177: 42 | C177: =IFERROR(VLOOKUP($D$5&$D$6&B177,'Pbr''s'!B:W,5,0)," ") ->  | E177: =IFERROR(VLOOKUP($D$5&$D$6&B177&C177,'Pbr''s'!A:W,7,0)," ") ->  | F177: =IFERROR(VLOOKUP($D$5&$D$6&B177&C177,'Pbr''s'!A:W,8,0)," ") ->  | G177: =IFERROR(VLOOKUP($D$5&$D$6&B177&C177,'Pbr''s'!A:W,9,0)," ") ->  | H177: =IFERROR(VLOOKUP($D$5&$D$6&B177&C177,'Pbr''s'!A:W,10,0)," ") ->  | M177: =(SUM(I177:L177)/H177) -> 
B178: DESCRIPCIÓN DE LAS ACTIVIDADES REALIZADAS (REDACTAR SÓLO LO REALIZADO EN TIEMPO PASADO) | C178: Narrativa de trimestre Octubre-Diciembre:
C179: Narrativa de trimestre Enero-marzo:
C180: Narrativa de trimestre Abril-junio:
C181: Narrativa de trimestre Julio-sept:

Sheet Pbr's (hidden)
D1: SECRETARIA | E1: DIRECCIONES | F1: Proyecto | G1: Indicador Operativo | H1: Unidad de medida | I1: Línea Base | J1: Meta | L1: Dimension a Medir
A2: =B2&F2 -> ComucatComucat1Capacitaciones Preventivas En Adicciones | B2: =D2&E2&C2 -> ComucatComucat1 | C2: =COUNTIF($E$2:E2,E2:E2) -> 1 | D2: Comucat | E2: Comucat | F2: Capacitaciones Preventivas En Adicciones | G2: Porcentaje De Personas Capacitadas En Tema De Prevención De Adicciones | H2: Número De Personas Capacitadas | I2: 4900 | J2: 7000 | L2: Eficiencia
A3: =B3&F3 -> ComucatComucat2Jornadas De La Salud Mental | B3: =D3&E3&C3 -> ComucatComucat2 | C3: =COUNTIF($E$2:E3,E3:E3) -> 2 | D3: Comucat | E3: Comucat | F3: Jornadas De La Salud Mental | G3: Porcentaje De Eventos Realizados Con Temas De Salud Mental | H3: Número De Eventos Realizados | I3: 0 | J3: 4 | L3: Eficacia
A4: ComucatComucat3Red De Apoyo Para Establecimientos Especializados En Adicciones | B4: ComucatComucat3 | C4: =COUNTIF($E$2:E4,E4:E4) -> 3 | D4: Comucat | E4: Comucat | F4: Red De Apoyo Para Establecimientos Especializados En Adicciones | G4: Porcentaje De Establecimientos Especializados En Adicciones Registrados Ante El Comucat | H4: Número De Establecimientos Registrados | I4: 55 | J4: 65 | L4: Economía
A5: ComucatComucat4Red De Apoyo Para Establecimientos Especializados En Adicciones | B5: ComucatComucat4 | C5: =COUNTIF($E$2:E5,E5:E5) -> 4 | D5: Comucat | E5: Comucat | F5: Red De Apoyo Para Establecimientos Especializados En Adicciones | G5: Porcentaje De Capacitaciones Otorgadas A Los Establecimientos | H5: Número De Capacitaciones Otorgadas | I5: 8 | J5: 12 | L5: Calidad
A6: ComucatComucat5Terapias Psicológicas (Tratamiento Breve Y/O Ambulatorio) | B6: ComucatComucat5 | C6: =COUNTIF($E$2:E6,E6:E6) -> 5 | D6: Comucat | E6: Comucat | F6: Terapias Psicológicas (Tratamiento Breve Y/O Ambulatorio) | G6: Porcentaje De Personas Atendidas Mediante Terapia Psicológica | H6: Número De Personas Atendidas | I6: 216 | J6: 400
A7: COMUDECOMUDE1Administración Y Gestión Institucional | B7: COMUDECOMUDE1 | C7: =COUNTIF($E$2:E7,E7:E7) -> 1 | D7: COMUDE | E7: COMUDE | F7: Administración Y Gestión Institucional | G7: Porcentaje de convenios elaborados para el programa de Administración y Gestión Institucional. | H7: Número de convenios elaborados | I7: 241 | J7: 250
A8: COMUDECOMUDE2Tlaquepaque Acude | B8: COMUDECOMUDE2 | C8: =COUNTIF($E$2:E8,E8:E8) -> 2 | D8: COMUDE | E8: COMUDE | F8: Tlaquepaque Acude | G8: Porcentaje de Escuelas y talleres de activación física implementados. | H8: Número de escuelas y talleres de activación física implementados. | I8: 130 | J8: 150
A9: COMUDECOMUDE3Tlaquepaque Acude | B9: COMUDECOMUDE3 | C9: =COUNTIF($E$2:E9,E9:E9) -> 3 | D9: COMUDE | E9: COMUDE | F9: Tlaquepaque Acude | G9: Porcentaje de Ligas deportivas implementadas. | H9: Número ligas deportivas implementadas. | I9: 37 | J9: 40
A10: COMUDECOMUDE4Administración Y Gestión Institucional | B10: COMUDECOMUDE4 | C10: =COUNTIF($E$2:E10,E10:E10) -> 4 | D10: COMUDE | E10: COMUDE | F10: Administración Y Gestión Institucional | G10: Porcentaje de Intervenciones en el programa de Mantenimiento de Espacios Públicos realizadas. | H10: Número de intervenciones realizadas. | I10: 120 | J10: 140
A11: COMUDECOMUDE5Macro Eventos | B11: COMUDECOMUDE5 | C11: =COUNTIF($E$2:E11,E11:E11) -> 5 | D11: COMUDE | E11: COMUDE | F11: Macro Eventos | G11: Porcentaje de Macro Eventos Realizados. | H11: Número de Macro Eventos Realizados | I11: 18 | J11: 20
A12: COMUDECOMUDE6Vía Recreativa Metropolitana San Pedro Tlaquepaque | B12: COMUDECOMUDE6 | C12: =COUNTIF($E$2:E12,E12:E12) -> 6 | D12: COMUDE | E12: COMUDE | F12: Vía Recreativa Metropolitana San Pedro Tlaquepaque | G12: Porcentaje de Jornadas dominicales de la Vía Recreativa, realizadas | H12: Número de jornadas realizadas | I12: 55 | J12: 55
A13: DIFAdulto Mayor1Colibrí Esperanza, Centro De Dia | B13: DIFAdulto Mayor1 | C13: =COUNTIF($E$2:E13,E13:E13) -> 1 | D13: DIF | E13: Adulto Mayor | F13: Colibrí Esperanza, Centro De Dia | G13: Servicios Otorgados Porcentaje De Servicios Integrales A Los Adultos Mayores Otorgados | H13: Número De Servicios Otorgados | I13: 0 | J13: 5000
A14: DIFAdulto Mayor2Colibrí Esperanza, Centro De Dia | B14: DIFAdulto Mayor2 | C14: =COUNTIF($E$2:E14,E14:E14) -> 2 | D14: DIF | E14: Adulto Mayor | F14: Colibrí Esperanza, Centro De Dia | G14: Talleres Otorgados Porcentaje De Talleres | H14: Numero De Talleres Otorgados | I14: 0 | J14: 5000
A15: DIFAdulto Mayor3Colibrí Esperanza, Centro De Dia | B15: DIFAdulto Mayor3 | C15: =COUNTIF($E$2:E15,E15:E15) -> 3 | D15: DIF | E15: Adulto Mayor | F15: Colibrí Esperanza, Centro De Dia | G15: Actividades Recreativa, Culturales Y Deportivas | H15: Atención En Actividades Recreativa, Culturales Y Deportivas | I15: 0 | J15: 6400
A16: DIFAsistencia Alimentaria1Área Alimentaria | B16: DIFAsistencia Alimentaria1 | C16: =COUNTIF($E$2:E16,E16:E16) -> 1 | D16: DIF | E16: Asistencia Alimentaria | F16: Área Alimentaria | G16: Raciones De Alimentos En Escolares | H16: Cantidad De Raciones Entregadas | I16: 952167 | J16: 952167
A17: DIFAsistencia Alimentaria2Área Alimentaria | B17: DIFAsistencia Alimentaria2 | C17: =COUNTIF($E$2:E17,E17:E17) -> 2 | D17: DIF | E17: Asistencia Alimentaria | F17: Área Alimentaria | G17: Dotaciones Alimentarias | H17: Cantidad De Despensas | I17: 32208 | J17: 32208
A18: =B18&F18 -> DIFAsistencia Alimentaria3Área Alimentaria | B18: DIFAsistencia Alimentaria3 | C18: =COUNTIF($E$2:E18,E18:E18) -> 3 | D18: DIF | E18: Asistencia Alimentaria | F18: Área Alimentaria | G18: Capacitaciones De Orientación Alimentaria | H18: Cantidad De Beneficiarios Que Reciben | I18: 19944 | J18: 19944
A19: DIFAsistencia Alimentaria4Área Alimentaria | B19: DIFAsistencia Alimentaria4 | C19: =COUNTIF($E$2:E19,E19:E19) -> 4 | D19: DIF | E19: Asistencia Alimentaria | F19: Área Alimentaria | G19: Raciones De Alimentos Preparados En Comedores Comunitarios | H19: Cantidad De Raciones Entregadas | I19: 13920 | J19: 13920
A20: DIFApce1Tlaquepaque Solidario: Atención Y Protección En Situaciones De Emergencia | B20: DIFApce1 | C20: =COUNTIF($E$2:E20,E20:E20) -> 1 | D20: DIF | E20: Apce | F20: Tlaquepaque Solidario: Atención Y Protección En Situaciones De Emergencia | G20: Número De Personas En Situación De Calle Y Población Vulnerable Atendida Mediante Apoyos Y Programas Emergentes. | H20: Personas Atendidas | I20: 0 | J20: 1000
A21: DIFÁrea Medica1Área Medica | B21: DIFÁrea Medica1 | C21: =COUNTIF($E$2:E21,E21:E21) -> 1 | D21: DIF | E21: Área Medica | F21: Área Medica | G21: Servicios Otorgados | H21: Numero De Servicios Otorgados | I21: 30200 | J21: 30400
A22: DIFÁrea Medica2Área Medica | B22: DIFÁrea Medica2 | C22: =COUNTIF($E$2:E22,E22:E22) -> 2 | D22: DIF | E22: Área Medica | F22: Área Medica | G22: Capacitaciones Brindadas En Temas De Salud. | H22: Número De Capacitaciones Brindadas | I22: 65 | J22: 65
A23: DIFÁrea Medica3Área Medica | B23: DIFÁrea Medica3 | C23: =COUNTIF($E$2:E23,E23:E23) -> 3 | D23: DIF | E23: Área Medica | F23: Área Medica | G23: Capacitaciones Recibidas Por El Personal De Área Medica. | H23: Número De Capacitaciones. | I23: 20 | J23: 20
A24: DIFCoordinación De Caic1Seguimiento De Acciones Para Implementar Capacitaciones De Primeros Auxilios En Maestras De Ciac | B24: DIFCoordinación De Caic1 | C24: =COUNTIF($E$2:E24,E24:E24) -> 1 | D24: DIF | E24: Coordinación De Caic | F24: Seguimiento De Acciones Para Implementar Capacitaciones De Primeros Auxilios En Maestras De Ciac | G24: Porcentaje De Sesiones Impartidas Para La Capacitaciones D Primeros Auxilios En Maestras Y Directoras De Caic | H24: Sesiones | I24: 0 | J24: 2
A25: DIFCoordinación De Caic2Seguimiento De Acciones Para Realizar Capacitaciones A Las Intendentes Y Cocineras De Cada Uno De Los Centros De Atención Infantil Cometarios (Caic) | B25: DIFCoordinación De Caic2 | C25: =COUNTIF($E$2:E25,E25:E25) -> 2 | D25: DIF | E25: Coordinación De Caic | F25: Seguimiento De Acciones Para Realizar Capacitaciones A Las Intendentes Y Cocineras De Cada Uno De Los Centros De Atención Infantil Cometarios (Caic) | G25: Porcentaje De Sesiones Impartidas | H25: Sesiones | I25: 0 | J25: 2
A26: DIFDif Tlaquepaque (Casa La Esperanza) 1Casa La Esperanza | B26: DIFDif Tlaquepaque (Casa La Esperanza) 1 | C26: =COUNTIF($E$2:E26,E26:E26) -> 1 | D26: DIF | E26: Dif Tlaquepaque (Casa La Esperanza) | F26: Casa La Esperanza | G26: Niñas, Niños Y Adolescentes (Nna) Albergados En Situación De Vulnerabilidad. Así Como Niñas, Niños Y Adolescentes Reintegrados O Reubicados. | H26: Niñas, Niños Y Adolescentes Albergados, Reintegrados. | I26: 91 | J26: 65
A27: DIFCentro De Capacitación Y Atención Para Personas Con Discapacidad1Programa De Atención A La Discapacidad | B27: DIFCentro De Capacitación Y Atención Para Personas Con Discapacidad1 | C27: =COUNTIF($E$2:E27,E27:E27) -> 1 | D27: DIF | E27: Centro De Capacitación Y Atención Para Personas Con Discapacidad | F27: Programa De Atención A La Discapacidad | G27: Personas Atendidas Con Autismo | H27: Sesiones | I27: 30 | J27: 30
A28: DIFCentro De Capacitación Y Atención Para Personas Con Discapacidad2Programa De Atención A La Discapacidad | B28: DIFCentro De Capacitación Y Atención Para Personas Con Discapacidad2 | C28: =COUNTIF($E$2:E28,E28:E28) -> 2 | D28: DIF | E28: Centro De Capacitación Y Atención Para Personas Con Discapacidad | F28: Programa De Atención A La Discapacidad | G28: Porcentaje De Atención A Personas Con Discapacidad | H28: Sesiones De Atención Brindadas A Personas Con Discapacidad | I28: 4000 | J28: 4500
A29: DIFJefatura Cdc1Cdc | B29: DIFJefatura Cdc1 | C29: =COUNTIF($E$2:E29,E29:E29) -> 1 | D29: DIF | E29: Jefatura Cdc | F29: Cdc | G29: Porcentajes De Campañas, Promovidas Para Dar A Conocer Los Cursos, Talleres | H29: Número De Campañas Promovidas | I29: 0 | J29: 3
A30: DIFProcuraduría De Protección A Niñas, Niños Y Adolescentes1Centro De Convivencia Familiar | B30: DIFProcuraduría De Protección A Niñas, Niños Y Adolescentes1 | C30: =COUNTIF($E$2:E30,E30:E30) -> 1 | D30: DIF | E30: Procuraduría De Protección A Niñas, Niños Y Adolescentes | F30: Centro De Convivencia Familiar | G30: Atención A Convivencias | H30: Numero De Convivencias Supervisadas | I30: 1581 | J30: 1850
A31: DIFProcuraduría De Protección A Niñas, Niños Y Adolescentes2Centro De Convivencia Familiar | B31: DIFProcuraduría De Protección A Niñas, Niños Y Adolescentes2 | C31: =COUNTIF($E$2:E31,E31:E31) -> 2 | D31: DIF | E31: Procuraduría De Protección A Niñas, Niños Y Adolescentes | F31: Centro De Convivencia Familiar | G31: Realización De Reportes | H31: Numero De Reportes Realizados | I31: 2194 | J31: 2950
A32: DIFProcuraduría De Protección A Niñas, Niños Y Adolescentes3Centro De Convivencia Familiar | B32: DIFProcuraduría De Protección A Niñas, Niños Y Adolescentes3 | C32: =COUNTIF($E$2:E32,E32:E32) -> 3 | D32: DIF | E32: Procuraduría De Protección A Niñas, Niños Y Adolescentes | F32: Centro De Convivencia Familiar | G32: Atención A Usuarios | H32: Numero De Usuarios Atendidos | I32: 5307 | J32: 8500
A33: DIFAuxiliar Administrativo 1Operatividad Administrativa | B33: DIFAuxiliar Administrativo 1 | C33: =COUNTIF($E$2:E33,E33:E33) -> 1 | D33: DIF | E33: Auxiliar Administrativo | F33: Operatividad Administrativa | G33: Porcentaje de usuarios que acuden al CECOFAM con credencial expedida | H33: Número de usuarios con credencial expedida | I33: 0 | J33: 174
A34: DIFProcuraduría De Protección A Niñas, Niños Y Adolescentes4Platica Prematrimoniales | B34: DIFProcuraduría De Protección A Niñas, Niños Y Adolescentes4 | C34: =COUNTIF($E$2:E34,E34:E34) -> 4 | D34: DIF | E34: Procuraduría De Protección A Niñas, Niños Y Adolescentes | F34: Platica Prematrimoniales | G34: Platica Prematrimoniales | H34: Constancias | I34: 2000 | J34: 2500
A35: DIFProcuraduría De Protección A Niñas, Niños Y Adolescentes5Delegación De La Procuraduría De Protección A Niñas, Niños Y Adolescentes | B35: DIFProcuraduría De Protección A Niñas, Niños Y Adolescentes5 | C35: =COUNTIF($E$2:E35,E35:E35) -> 5 | D35: DIF | E35: Procuraduría De Protección A Niñas, Niños Y Adolescentes | F35: Delegación De La Procuraduría De Protección A Niñas, Niños Y Adolescentes | G35: Reporte Atendido Por Medio De Visita Domiciliaria | H35: Visita Domiciliaria | I35: 384 | J35: 800
A36: DIFPreverp1Clínica Deportiva Prevención De Adicciones | B36: DIFPreverp1 | C36: =COUNTIF($E$2:E36,E36:E36) -> 1 | D36: DIF | E36: Preverp | F36: Clínica Deportiva Prevención De Adicciones | G36: Porcentaje De Niñas, Niños Y Adolescentes Atendidos Mediante El Programa Clínicas Deportivas De Prevención De Adicciones | H36: Número De Niñas, Niños Y Adolescentes Atendidos | I36: 35 | J36: 40
A37: DIFPreverp2Crecer Sin Violencia Y Prevención Del Embarazo Adolescente | B37: DIFPreverp2 | C37: =COUNTIF($E$2:E37,E37:E37) -> 2 | D37: DIF | E37: Preverp | F37: Crecer Sin Violencia Y Prevención Del Embarazo Adolescente | G37: Porcentaje De Niñas, Niños Y Adolescentes Atendidos Mediante El Programa Crecer Sin Violencia | H37: Número De Niñas, Niños Y Adolescentes Atendidos | I37: 750 | J37: 800
A38: DIFPreverp3Exploro, Crezco Y Juego Mientras Estudio Y Me Divierto | B38: DIFPreverp3 | C38: =COUNTIF($E$2:E38,E38:E38) -> 3 | D38: DIF | E38: Preverp | F38: Exploro, Crezco Y Juego Mientras Estudio Y Me Divierto | G38: Porcentaje De Niñas, Niños Y Adolescentes Atendidos Mediante El Proyecto "Exploro, Crezco Y Juego, Mientras Estudio Y Me Divierto" | H38: Número De Niñas, Niños Y Adolescentes Atendidos | I38: 0 | J38: 100
A39: DIFPsicología 1Psicología | B39: DIFPsicología 1 | C39: =COUNTIF($E$2:E39,E39:E39) -> 1 | D39: DIF | E39: Psicología | F39: Psicología | G39: Atención Psicológica | H39: Sesiones | I39: 10000 | J39: 10500
A40: DIFTrabajo Social1Fortalecimiento Sociofamiliar | B40: DIFTrabajo Social1 | C40: =COUNTIF($E$2:E40,E40:E40) -> 1 | D40: DIF | E40: Trabajo Social | F40: Fortalecimiento Sociofamiliar | G40: Servicios Y Tramites De Apoyo Asistencial Otorgados. | H40: Actividades Realizadas Para Llevar Acabo Su Atención | I40: 3700 | J40: 3000
A41: DIFTutela De Derechos 1Restitución De Derechos De NN ya | B41: DIFTutela De Derechos 1 | C41: =COUNTIF($E$2:E41,E41:E41) -> 1 | D41: DIF | E41: Tutela De Derechos | F41: Restitución De Derechos De NN ya | G41: Niñas Niños Y Adolescentes Reintegrados | H41: Numero De Nna | I41: 0 | J41: 100
A42: DIFTutela De Derechos 2Restitución De Derechos De Nnya | B42: DIFTutela De Derechos 2 | C42: =COUNTIF($E$2:E42,E42:E42) -> 2 | D42: DIF | E42: Tutela De Derechos | F42: Restitución De Derechos De Nnya | G42: Niñas Niños Y Adolescentes En Acogimiento | H42: Numero De Nna | I42: 0 | J42: 5
A43: DIFTutela De Derechos 3Restitución De Derechos De Nnya | B43: DIFTutela De Derechos 3 | C43: =COUNTIF($E$2:E43,E43:E43) -> 3 | D43: DIF | E43: Tutela De Derechos | F43: Restitución De Derechos De Nnya | G43: Niñas Niños Y Adolescentes P.D | H43: Numero De Nna | I43: 60 | J43: 118
A44: DIFUavifam 1Protección Y Atención Ante Casos De Violencia Familiar | B44: DIFUavifam 1 | C44: =COUNTIF($E$2:E44,E44:E44) -> 1 | D44: DIF | E44: Uavifam | F44: Protección Y Atención Ante Casos De Violencia Familiar | G44: Porcentaje de casos atendidos de manera directa o por derivación | H44: Número de casos atendidos | I44: 300 | J44: 400
A45: DIFJefatura Cdc2Cdc | B45: DIFJefatura Cdc2 | C45: =COUNTIF($E$2:E45,E45:E45) -> 2 | D45: DIF | E45: Jefatura Cdc | F45: Cdc | G45: Porcentajes de sesiones de educación básica y media superior, realizadas | H45: Número De Sesiones Realizadas | I45: 13 | J45: 52
A46: DIFJefatura Cdc3Cdc | B46: DIFJefatura Cdc3 | C46: =COUNTIF($E$2:E46,E46:E46) -> 3 | D46: DIF | E46: Jefatura Cdc | F46: Cdc | G46: Porcentaje de sesiones de capacitación de oficios y habilidades técnicas para el empleo y emprendimiento en las coonias prioritarias, realizadas | H46: Número De Sesiones Realizadas | I46: 1500 | J46: 1800
A47: IMJUVETProyectos Y Programas1Abrazando Tus Raíces | B47: IMJUVETProyectos Y Programas1 | C47: =COUNTIF($E$2:E47,E47:E47) -> 1 | D47: IMJUVET | E47: Proyectos Y Programas | F47: Abrazando Tus Raíces | G47: Porcentaje De Juventudes | H47: Numero De Juventudes Beneficiadas | I47: 0 | J47: 4500
A48: IMJUVETProyectos Y Programas2Cabildo Juvenil | B48: IMJUVETProyectos Y Programas2 | C48: =COUNTIF($E$2:E48,E48:E48) -> 2 | D48: IMJUVET | E48: Proyectos Y Programas | F48: Cabildo Juvenil | G48: Numero De Etapas Realizadas | H48: Numero De Etapas Realizadas | I48: 3 | J48: 4
A49: IMJUVETProyectos Y Programas3Inovatlaq | B49: IMJUVETProyectos Y Programas3 | C49: =COUNTIF($E$2:E49,E49:E49) -> 3 | D49: IMJUVET | E49: Proyectos Y Programas | F49: Inovatlaq | G49: Porcentaje De Juventudes Participantes | H49: Numero De Juventudes Participantes | I49: 0 | J49: 600
A50: IMJUVETProyectos Y Programas4Juventudes A La Cancha | B50: IMJUVETProyectos Y Programas4 | C50: =COUNTIF($E$2:E50,E50:E50) -> 4 | D50: IMJUVET | E50: Proyectos Y Programas | F50: Juventudes A La Cancha | G50: Juventudes Participantes En Los Torneos | H50: Numero De Juventudes Participantes | I50: 0 | J50: 2000
A51: IMJUVETProyectos Y Programas5Juventudes Altruistas | B51: IMJUVETProyectos Y Programas5 | C51: =COUNTIF($E$2:E51,E51:E51) -> 5 | D51: IMJUVET | E51: Proyectos Y Programas | F51: Juventudes Altruistas | G51: Porcentaje De Juventudes | H51: Numero De Juventudes Beneficiadas | I51: 0 | J51: 600
A52: IMJUVETProyectos Y Programas6Juventudes Emprendedoras | B52: IMJUVETProyectos Y Programas6 | C52: =COUNTIF($E$2:E52,E52:E52) -> 6 | D52: IMJUVET | E52: Proyectos Y Programas | F52: Juventudes Emprendedoras | G52: Porcentaje De Juventudes | H52: Numero De Juventudes Beneficiadas | I52: 0 | J52: 500
A53: IMJUVETProyectos Y Programas7Premio De Las Juventudes | B53: IMJUVETProyectos Y Programas7 | C53: =COUNTIF($E$2:E53,E53:E53) -> 7 | D53: IMJUVET | E53: Proyectos Y Programas | F53: Premio De Las Juventudes | G53: Porcentaje De Juventudes Participantes | H53: Numero De Juventudes Participantes | I53: 2100 | J53: 2500
A54: IMJUVETProyectos Y Programas8Preparando Juventudes | B54: IMJUVETProyectos Y Programas8 | C54: =COUNTIF($E$2:E54,E54:E54) -> 8 | D54: IMJUVET | E54: Proyectos Y Programas | F54: Preparando Juventudes | G54: Porcentaje De Jóvenes Que Asistan A Las Charlas | H54: Numero De Jóvenes Participantes | I54: 3700 | J54: 4000
A55: INMUJERESPolíticas Publicas 1Acciones Para Una Vida Libre De Violencia | B55: INMUJERESPolíticas Publicas 1 | C55: =COUNTIF($E$2:E55,E55:E55) -> 1 | D55: INMUJERES | E55: Políticas Publicas | F55: Acciones Para Una Vida Libre De Violencia | G55: Porcentaje De Atenciones De Primer Contacto, Realizadas | H55: Número De Atenciones Realizadas | I55: 430 | J55: 500
A56: INMUJERESPolíticas Publicas 2Acciones Para Una Vida Libre De Violencia | B56: INMUJERESPolíticas Publicas 2 | C56: =COUNTIF($E$2:E56,E56:E56) -> 2 | D56: INMUJERES | E56: Políticas Publicas | F56: Acciones Para Una Vida Libre De Violencia | G56: Porcentaje De Acciones De Prevención De La Violencia De Género En La Comunidad, Realizadas | H56: Número De Acciones Realizadas | I56: 40 | J56: 45
A57: INMUJERESPolíticas Publicas 3Acciones Para Una Vida Libre De Violencia | B57: INMUJERESPolíticas Publicas 3 | C57: =COUNTIF($E$2:E57,E57:E57) -> 3 | D57: INMUJERES | E57: Políticas Publicas | F57: Acciones Para Una Vida Libre De Violencia | G57: Porcentaje De Personas Beneficiadas Con Las Acciones De Prevención, Atención Y Profesionalización En Materia De Violencia Contra Las Mujeres. | H57: Número De Personas Beneficiarias | I57: 1500 | J57: 2500
A58: INMUJERESPolíticas Publicas 4Acciones Para Una Vida Libre De Violencia | B58: INMUJERESPolíticas Publicas 4 | C58: =COUNTIF($E$2:E58,E58:E58) -> 4 | D58: INMUJERES | E58: Políticas Publicas | F58: Acciones Para Una Vida Libre De Violencia | G58: Porcentaje De Eventos Conmemorativos De Fechas O Acciones Contra La Violencia De Género, Realizados | H58: Número De Eventos Realizados | I58: 1 | J58: 1
A59: INMUJERESPolíticas Publicas 5Acciones Por La Igualdad Sustantiva | B59: INMUJERESPolíticas Publicas 5 | C59: =COUNTIF($E$2:E59,E59:E59) -> 5 | D59: INMUJERES | E59: Políticas Publicas | F59: Acciones Por La Igualdad Sustantiva | G59: Porcentaje De Personas Beneficiadas Por Las Acciones De Promoción | H59: Número De Personas Beneficiadas | I59: 1500 | J59: 2500
A60: INMUJERESPolíticas Publicas 6Acciones Por La Igualdad Sustantiva | B60: INMUJERESPolíticas Publicas 6 | C60: =COUNTIF($E$2:E60,E60:E60) -> 6 | D60: INMUJERES | E60: Políticas Publicas | F60: Acciones Por La Igualdad Sustantiva | G60: Porcentaje De Eventos Conmemorativos Para Promover Y Reconocer Los Derechos De Las Mujeres En Su Diversidad, Realizados | H60: Número De Eventos Realizados | I60: 1 | J60: 1
A61: INMUJERESPolíticas Publicas 7Visión Transversal De La Perspectiva De Género. | B61: INMUJERESPolíticas Publicas 7 | C61: =COUNTIF($E$2:E61,E61:E61) -> 7 | D61: INMUJERES | E61: Políticas Publicas | F61: Visión Transversal De La Perspectiva De Género. | G61: Porcentaje De Acciones Con Perspectiva De Género Reportadas. | H61: Número De Acciones Reportadas | I61: 30 | J61: 35
A62: INMUJERESPolíticas Publicas 8Visión Transversal De La Perspectiva De Género. | B62: INMUJERESPolíticas Publicas 8 | C62: =COUNTIF($E$2:E62,E62:E62) -> 8 | D62: INMUJERES | E62: Políticas Publicas | F62: Visión Transversal De La Perspectiva De Género. | G62: Porcentaje De Mujeres Beneficiadas Por Incorporación De Perspectiva De Género. | H62: Número De Mujeres Beneficiadas | I62: 1500 | J62: 1500
A63: Oficialía Mayor Departamento De Capacitación Y Servicio Social1Convenios De Colaboración Para Prácticas Profesionales Y Servicio Social Con Universidades E Instituciones Educativas | B63: Oficialía Mayor Departamento De Capacitación Y Servicio Social1 | C63: =COUNTIF($E$2:E63,E63:E63) -> 1 | D63: Oficialía Mayor | E63: Departamento De Capacitación Y Servicio Social | F63: Convenios De Colaboración Para Prácticas Profesionales Y Servicio Social Con Universidades E Instituciones Educativas | G63: Cantidad De Convenios De Colaboración. | H63: Número De Convenios De Colaboración Celebrados. | I63: 12 | J63: 40
A64: Oficialía Mayor Departamento De Capacitación Y Servicio Social2Vinculación Universitaria Tlaquepaque | B64: Oficialía Mayor Departamento De Capacitación Y Servicio Social2 | C64: =COUNTIF($E$2:E64,E64:E64) -> 2 | D64: Oficialía Mayor | E64: Departamento De Capacitación Y Servicio Social | F64: Vinculación Universitaria Tlaquepaque | G64: Cantidad De Prestadores De Servicio Social Y Prácticas Profesionales Registrados En El Gobierno Municipal De San Pedro Tlaquepaque | H64: Número De Prestadores De Servicio Social Y Prácticas Profesionales | I64: 941 | J64: 1200
A65: Oficialía Mayor Departamento De Capacitación Y Servicio Social3Capacitación En Derechos Humanos | B65: Oficialía Mayor Departamento De Capacitación Y Servicio Social3 | C65: =COUNTIF($E$2:E65,E65:E65) -> 3 | D65: Oficialía Mayor | E65: Departamento De Capacitación Y Servicio Social | F65: Capacitación En Derechos Humanos | G65: Porcentaje De Servidoras Y Servidores Públicos Capacitados En Materia De Ddhh | H65: Número De Personas Capacitadas | I65: 0 | J65: 750
A66: Oficialía Mayor Departamento De Capacitación Y Servicio Social4Difusión De Protocolos | B66: Oficialía Mayor Departamento De Capacitación Y Servicio Social4 | C66: =COUNTIF($E$2:E66,E66:E66) -> 4 | D66: Oficialía Mayor | E66: Departamento De Capacitación Y Servicio Social | F66: Difusión De Protocolos | G66: Porcentaje De Personas Con Sensibilización En La Difusión De Protocolos Para Personas Adultas Mayores Y Personas Con Discapacidad | H66: Número De Personas Capacitadas | I66: 0 | J66: 720
A67: Oficialía Mayor Departamento De Capacitación Y Servicio Social5Promoción De Estilos De Vida Y Entornos Laboral, Alimentaria Y Físicamente Saludable Para El Personal. | B67: =D67&E67&C67 -> Oficialía Mayor Departamento De Capacitación Y Servicio Social5 | C67: =COUNTIF($E$2:E67,E67:E67) -> 5 | D67: Oficialía Mayor | E67: Departamento De Capacitación Y Servicio Social | F67: Promoción De Estilos De Vida Y Entornos Laboral, Alimentaria Y Físicamente Saludable Para El Personal. | G67: Porcentaje De Edificios Certificados Como Entornos Saludables | H67: Número De Edificios Certificados | I67: 0 | J67: 8
A68: Oficialía Mayor Departamento De Capacitación Y Servicio Social6Fortalecimiento Y Desarrollo De Habilidades Técnicas, Blandas, De Salud Mental Y De Desarrollo Humano. | B68: Oficialía Mayor Departamento De Capacitación Y Servicio Social6 | C68: =COUNTIF($E$2:E68,E68:E68) -> 6 | D68: Oficialía Mayor | E68: Departamento De Capacitación Y Servicio Social | F68: Fortalecimiento Y Desarrollo De Habilidades Técnicas, Blandas, De Salud Mental Y De Desarrollo Humano. | G68: Porcentaje De Servidoras Y Servidores Públicos Capacitados | H68: Número De Personas Capacitadas | I68: 0 | J68: 750
A69: Oficialía Mayor Dirección De Desarrollo Organizacional1Diagnostico Clima Organizacional | B69: Oficialía Mayor Dirección De Desarrollo Organizacional1 | C69: =COUNTIF($E$2:E69,E69:E69) -> 1 | D69: Oficialía Mayor | E69: Dirección De Desarrollo Organizacional | F69: Diagnostico Clima Organizacional | G69: Porcentaje De Secretarias Atendidas Mediante Un Cuestionario Para Evaluar El Perfil Laboral. | H69: Número De Secretarias Atendidas | I69: 0 | J69: 14
A70: Oficialía Mayor Departamento De Identificación Y Análisis De Riesgos1Identificación De Riesgos En Áreas Operativas | B70: Oficialía Mayor Departamento De Identificación Y Análisis De Riesgos1 | C70: =COUNTIF($E$2:E70,E70:E70) -> 1 | D70: Oficialía Mayor | E70: Departamento De Identificación Y Análisis De Riesgos | F70: Identificación De Riesgos En Áreas Operativas | G70: Porcentaje De Secretarias Atendidas Mediante Un Cuestionario Para Evaluar El Perfil Laboral | H70: Numero De Secretarias Atendidas | I70: 0 | J70: 14
A71: Oficialía Mayor Oficialía Mayor1Difusión Integral De Las Obligaciones Y Derechos De Los Servidores Públicos. | B71: Oficialía Mayor Oficialía Mayor1 | C71: =COUNTIF($E$2:E71,E71:E71) -> 1 | D71: Oficialía Mayor | E71: Oficialía Mayor | F71: Difusión Integral De Las Obligaciones Y Derechos De Los Servidores Públicos. | G71: Porcentaje De Secretarias Con Promoción Y Difusión De Derechos Y Obligaciones De Los Servidores Públicos | H71: Número De Secretarías Con Promoción Y Difusión De Derechos Y Obligaciones De Los Servidores Públicos. | I71: 0 | J71: 14
A72: Oficialía Mayor Dirección De Recursos Humanos1Pago De Nóminas | B72: Oficialía Mayor Dirección De Recursos Humanos1 | C72: =COUNTIF($E$2:E72,E72:E72) -> 1 | D72: Oficialía Mayor | E72: Dirección De Recursos Humanos | F72: Pago De Nóminas | G72: Porcentaje En La Generación Y Expedición Eficiente Y Puntual De La Nómina Ordinaria Municipal, Apoyada En Procesos De Actualización Y Digitalización De Sistemas Para La Gestión De Recursos Humanos. | H72: Número De Nóminas Generadas | I72: 24 | J72: 24
A73: Oficialía Mayor Dirección De Recursos Humanos2Pago De Nóminas | B73: Oficialía Mayor Dirección De Recursos Humanos2 | C73: =COUNTIF($E$2:E73,E73:E73) -> 2 | D73: Oficialía Mayor | E73: Dirección De Recursos Humanos | F73: Pago De Nóminas | G73: Porcentaje En La Generación Y Expedición Eficiente Y Puntual De La Nómina Extraordinaria Municipal, Apoyada En Procesos De Actualización Y Digitalización De Sistemas Para La Gestión De Recursos Humanos. | H73: Número De Nóminas Generadas | I73: 65 | J73: 65
A74: Premio Nacional De La CerámicaPremio Nacional De La Cerámica1Premio Nacional De La Cerámica | B74: Premio Nacional De La CerámicaPremio Nacional De La Cerámica1 | C74: =COUNTIF($E$2:E74,E74:E74) -> 1 | D74: Premio Nacional De La Cerámica | E74: Premio Nacional De La Cerámica | F74: Premio Nacional De La Cerámica | G74: Porcentaje De Artesanos Participantes Dentro De La Edición 49 Del Premio Nacional De La Cerámica | H74: Número De Participantes | I74: 912 | J74: 950
A75: Premio Nacional De La CerámicaPremio Nacional De La Cerámica2Premio Nacional De La Cerámica | B75: Premio Nacional De La CerámicaPremio Nacional De La Cerámica2 | C75: =COUNTIF($E$2:E75,E75:E75) -> 2 | D75: Premio Nacional De La Cerámica | E75: Premio Nacional De La Cerámica | F75: Premio Nacional De La Cerámica | G75: Porcentaje De Artesanos Beneficiados En La Expo Venta De Obras Dentro De La Edición 49 Del Premio Nacional De La Cerámica | H75: Número De Artesanos Beneficiados. | I75: 150 | J75: 180
A76: Premio Nacional De La CerámicaPremio Nacional De La Cerámica3Premio Nacional De La Cerámica | B76: Premio Nacional De La CerámicaPremio Nacional De La Cerámica3 | C76: =COUNTIF($E$2:E76,E76:E76) -> 3 | D76: Premio Nacional De La Cerámica | E76: Premio Nacional De La Cerámica | F76: Premio Nacional De La Cerámica | G76: Porcentaje de talleres y conferencias impartidas para promover y difundir las técnicas artesanales realizadas, | I76: 4 | J76: 5
A77: Secretaría De Administración Y Finanzas Dirección De Catastro1Trámites Y Servicios | B77: Secretaría De Administración Y Finanzas Dirección De Catastro1 | C77: =COUNTIF($E$2:E77,E77:E77) -> 1 | D77: Secretaría De Administración Y Finanzas | E77: Dirección De Catastro | F77: Trámites Y Servicios | G77: Porcentaje De Trámites Y Servicios En La Dirección De Catastro, Atendidos | H77: Número De Trámites Y Servicios Atendidos | I77: 25199 | J77: 27000
A78: Secretaría De Administración Y Finanzas Dirección De Contabilidad Y Glosa 1Programa De Elaboración Y Presentación De Cuentas Públicas | B78: Secretaría De Administración Y Finanzas Dirección De Contabilidad Y Glosa 1 | C78: =COUNTIF($E$2:E78,E78:E78) -> 1 | D78: Secretaría De Administración Y Finanzas | E78: Dirección De Contabilidad Y Glosa | F78: Programa De Elaboración Y Presentación De Cuentas Públicas | G78: Porcentaje De Avance En La Elaboración Y Presentación Puntual De Los Movimientos Detallados Y Cuentas Públicas. | H78: Número de talleres y conferencias realizadas. | I78: 0 | J78: 14
A79: Secretaría De Administración Y Finanzas Dirección De Egresos1Porcentaje De Presupuesto Ejercido De Acuerdo Con Criterios De Eficiencia, Austeridad Y Ahorro | B79: Secretaría De Administración Y Finanzas Dirección De Egresos1 | C79: =COUNTIF($E$2:E79,E79:E79) -> 1 | D79: Secretaría De Administración Y Finanzas | E79: Dirección De Egresos | F79: Porcentaje De Presupuesto Ejercido De Acuerdo Con Criterios De Eficiencia, Austeridad Y Ahorro | G79: Porcentaje De Presupuesto Ejercido De Acuerdo Con Base En Criterios De Eficiencia, Austeridad, Ahorro Y Rendición De Cuentas. | H79: Presupuesto Ejercido | I79: 2624511115 | J79: 2624511115
A80: Secretaría De Administración Y Finanzas Departamento De Redes Y Telecomunicaciones1Restructuración De Red De Secretaría De Salud (Marcos Montero) | B80: Secretaría De Administración Y Finanzas Departamento De Redes Y Telecomunicaciones1 | C80: =COUNTIF($E$2:E80,E80:E80) -> 1 | D80: Secretaría De Administración Y Finanzas | E80: Departamento De Redes Y Telecomunicaciones | F80: Restructuración De Red De Secretaría De Salud (Marcos Montero) | G80: Porcentaje De Etapas Realizadas Para La Instalación De Cámaras De Seguridad | H80: 10 | I80: 0 | J80: 10
A81: Secretaría De Administración Y Finanzas Departamento De Redes Y Telecomunicaciones2Restructuración De Red De La Unidad De Pila Seca | B81: Secretaría De Administración Y Finanzas Departamento De Redes Y Telecomunicaciones2 | C81: =COUNTIF($E$2:E81,E81:E81) -> 2 | D81: Secretaría De Administración Y Finanzas | E81: Departamento De Redes Y Telecomunicaciones | F81: Restructuración De Red De La Unidad De Pila Seca | G81: Porcentaje De Etapas Realizadas Para La Instalación De Cámaras De Seguridad | H81: 10 | I81: 0 | J81: 10
A82: =B82&F82 -> Secretaría De Administración Y Finanzas Dirección De Ingresos1Programa De Apoyo A Adultos Mayores | B82: Secretaría De Administración Y Finanzas Dirección De Ingresos1 | C82: =COUNTIF($E$2:E82,E82:E82) -> 1 | D82: Secretaría De Administración Y Finanzas | E82: Dirección De Ingresos | F82: Programa De Apoyo A Adultos Mayores | G82: Porcentaje De Trámites Autorizados Para Descuentos Y Exenciones A Adultos Mayores | H82: Número De Trámites Realizados | I82: 22000 | J82: 23000
A83: Secretaría De Administración Y Finanzas Dirección De Ingresos2Programa De Convenios | B83: Secretaría De Administración Y Finanzas Dirección De Ingresos2 | C83: =COUNTIF($E$2:E83,E83:E83) -> 2 | D83: Secretaría De Administración Y Finanzas | E83: Dirección De Ingresos | F83: Programa De Convenios | G83: Porcentaje De Convenios Realizados Para Cumplir Con El Pago De Los Impuestos | H83: Número De Convenios Realizados | I83: 320 | J83: 340
A84: Secretaría De Administración Y Finanzas Dirección De Ingresos3Programa Integral De Recaudación | B84: Secretaría De Administración Y Finanzas Dirección De Ingresos3 | C84: =COUNTIF($E$2:E84,E84:E84) -> 3 | D84: Secretaría De Administración Y Finanzas | E84: Dirección De Ingresos | F84: Programa Integral De Recaudación | G84: Porcentaje De Avance En La Recaudación Municipal | H84: Cantidad De Recursos Recaudados | I84: 336000000 | J84: 350000000
A85: Secretaría De Administración Y Finanzas Subdirección De Patrimonio Municipal1Administración De Bienes Inmuebles | B85: Secretaría De Administración Y Finanzas Subdirección De Patrimonio Municipal1 | C85: =COUNTIF($E$2:E85,E85:E85) -> 1 | D85: Secretaría De Administración Y Finanzas | E85: Subdirección De Patrimonio Municipal | F85: Administración De Bienes Inmuebles | G85: PORCENTAJE DE BIENES INMUEBLES DEL MUNICIPIO, CON REVISIÓN | H85: NÚMERO DE BIENES INMUEBLES REVISADOS | I85: 1160 | J85: 1289
A86: Secretaría De Administración Y Finanzas Departamento De Bienes Muebles1Administración De Bienes Muebles | B86: Secretaría De Administración Y Finanzas Departamento De Bienes Muebles1 | C86: =COUNTIF($E$2:E86,E86:E86) -> 1 | D86: Secretaría De Administración Y Finanzas | E86: Departamento De Bienes Muebles | F86: Administración De Bienes Muebles | G86: Porcentaje De Efectividad De Revisión De Bienes Muebles. | H86: Porcentaje | I86: 30258 | J86: 49923
A87: Secretaría De Administración Y Finanzas Dirección De Recursos Materiales1Capacitación Para Compras Y Adquisiciones | B87: Secretaría De Administración Y Finanzas Dirección De Recursos Materiales1 | C87: =COUNTIF($E$2:E87,E87:E87) -> 1 | D87: Secretaría De Administración Y Finanzas | E87: Dirección De Recursos Materiales | F87: Capacitación Para Compras Y Adquisiciones | G87: Porcentaje De Capacitaciones En Materia De Adquisiciones, Realizadas | H87: Número De Capacitaciones Realizadas | I87: 1 | J87: 2
A88: Secretaría De Administración Y Finanzas Dirección De Recursos Materiales2Procesos De Adquisiciones Ejecutadas | B88: Secretaría De Administración Y Finanzas Dirección De Recursos Materiales2 | C88: =COUNTIF($E$2:E88,E88:E88) -> 2 | D88: Secretaría De Administración Y Finanzas | E88: Dirección De Recursos Materiales | F88: Procesos De Adquisiciones Ejecutadas | G88: Porcentaje De Procedimientos De Adquisiciones De Bienes Y Servicios Realizados. | H88: Número De Procedimientos Realizados. | I88: 173 | J88: 180
A89: Secretaría De Administración Y Finanzas Departamento De Taller Municipal1Atención Al Mantenimiento Y Reparación Del Parque Vehicular Del Municipio De San Pedro Tlaquepaque | B89: Secretaría De Administración Y Finanzas Departamento De Taller Municipal1 | C89: =COUNTIF($E$2:E89,E89:E89) -> 1 | D89: Secretaría De Administración Y Finanzas | E89: Departamento De Taller Municipal | F89: Atención Al Mantenimiento Y Reparación Del Parque Vehicular Del Municipio De San Pedro Tlaquepaque | G89: Porcentaje De Unidades Reparadas En El Departamento De Taller Municipal. | H89: Número De Unidades Reparadas. | I89: 0 | J89: 1200
A90: Secretaría De BienestarAtención A Grupos En Situación De Vulnerabilidad1Entre Sombras Y Sueños De Esperanza | B90: Secretaría De BienestarAtención A Grupos En Situación De Vulnerabilidad1 | C90: =COUNTIF($E$2:E90,E90:E90) -> 1 | D90: Secretaría De Bienestar | E90: Atención A Grupos En Situación De Vulnerabilidad | F90: Entre Sombras Y Sueños De Esperanza | G90: porcentaje de personas atendidas mediante talleres de inteligencia emocional | H90: número de personas atendidas | J90: 60
A91: Secretaría De BienestarAtención A Grupos En Situación De Vulnerabilidad2Entre Sombras Y Sueños De Esperanza | B91: Secretaría De BienestarAtención A Grupos En Situación De Vulnerabilidad2 | C91: =COUNTIF($E$2:E91,E91:E91) -> 2 | D91: Secretaría De Bienestar | E91: Atención A Grupos En Situación De Vulnerabilidad | F91: Entre Sombras Y Sueños De Esperanza | G91: porcentaje de familias atendidas con pláticas de atención integral | H91: número de familias atendidas | J91: 30
A92: Secretaría De BienestarAtención A Grupos En Situación De Vulnerabilidad3¿Qué Hacer Con Los Desechos Orgánicos? Y Obtener Un Ingreso | B92: Secretaría De BienestarAtención A Grupos En Situación De Vulnerabilidad3 | C92: =COUNTIF($E$2:E92,E92:E92) -> 3 | D92: Secretaría De Bienestar | E92: Atención A Grupos En Situación De Vulnerabilidad | F92: ¿Qué Hacer Con Los Desechos Orgánicos? Y Obtener Un Ingreso | G92: Porcentaje de personas concientizadas sobre la importancia del manejo adecuado de residuos orgánicos. | H92: Número de personas concientizadas | I92: 0 | J92: 30
A93: Secretaría De BienestarAtención A Grupos En Situación De Vulnerabilidad4¿Qué Hacer Con Los Desechos Orgánicos? Y Obtener Un Ingreso | B93: Secretaría De BienestarAtención A Grupos En Situación De Vulnerabilidad4 | C93: =COUNTIF($E$2:E93,E93:E93) -> 4 | D93: Secretaría De Bienestar | E93: Atención A Grupos En Situación De Vulnerabilidad | F93: ¿Qué Hacer Con Los Desechos Orgánicos? Y Obtener Un Ingreso | G93: Porcentaje de personas capacitadas en técnicas de elaboración de composta. | H93: Número de personas capacitadas | I93: 0 | J93: 30
A94: Secretaría De BienestarAtención A Grupos En Situación De Vulnerabilidad5¿Qué Hacer Con Los Desechos Orgánicos? Y Obtener Un Ingreso | B94: Secretaría De BienestarAtención A Grupos En Situación De Vulnerabilidad5 | C94: =COUNTIF($E$2:E94,E94:E94) -> 5 | D94: Secretaría De Bienestar | E94: Atención A Grupos En Situación De Vulnerabilidad | F94: ¿Qué Hacer Con Los Desechos Orgánicos? Y Obtener Un Ingreso | G94: Porcentaje de personas capacitadas para implementar espacios para la producción de composta | H94: Número de personas capacitadas | I94: 0 | J94: 10
A95: Secretaría De BienestarAtención A Grupos En Situación De Vulnerabilidad6Raíces Fuertes: Comunidad De Mujeres Por El Bienestar | B95: Secretaría De BienestarAtención A Grupos En Situación De Vulnerabilidad6 | C95: =COUNTIF($E$2:E95,E95:E95) -> 6 | D95: Secretaría De Bienestar | E95: Atención A Grupos En Situación De Vulnerabilidad | F95: Raíces Fuertes: Comunidad De Mujeres Por El Bienestar | G95: Porcentaje De Personas Capacitadas Mediante Un Taller En Habilidades De Crianza, Autocuidado Y Prevención De Adicciones. | H95: Número De Personas Capacitadas | I95: 0 | J95: 40
A96: Secretaría De BienestarDirección De Educación1Abrigando Tu Bienestar | B96: Secretaría De BienestarDirección De Educación1 | C96: =COUNTIF($E$2:E96,E96:E96) -> 1 | D96: Secretaría De Bienestar | E96: Dirección De Educación | F96: Abrigando Tu Bienestar | G96: Porcentaje De Personas Beneficiadas Mediante La Campaña Abrigando Tu Bienestar | H96: Número De Personas Beneficiadas | I96: 1000 | J96: 1500
A97: Secretaría De BienestarDirección De Educación2Actividades Extraescolares | B97: Secretaría De BienestarDirección De Educación2 | C97: =COUNTIF($E$2:E97,E97:E97) -> 2 | D97: Secretaría De Bienestar | E97: Dirección De Educación | F97: Actividades Extraescolares | G97: Porcentaje De Alumnos Beneficiados, Mediante Cursos Extraescolares | H97: Número De Alumnos Beneficiados | I97: 0 | J97: 1000
A98: Secretaría De BienestarDirección De Educación3Cabildo Infantil | B98: Secretaría De BienestarDirección De Educación3 | C98: =COUNTIF($E$2:E98,E98:E98) -> 3 | D98: Secretaría De Bienestar | E98: Dirección De Educación | F98: Cabildo Infantil | G98: Porcentaje De Alumnos Elegidos En El Proceso Electoral | H98: Número De Alumnos Elegidos En El Proceso Electoral | I98: 0 | J98: 21
A99: Secretaría De BienestarDirección De Educación4Educación Y Capacitación Para El Medio Ambiente | B99: Secretaría De BienestarDirección De Educación4 | C99: =COUNTIF($E$2:E99,E99:E99) -> 4 | D99: Secretaría De Bienestar | E99: Dirección De Educación | F99: Educación Y Capacitación Para El Medio Ambiente | G99: Porcentaje De Planteles Intervenidos Mediante Capacitaciones Sobre Cuidado Del Medio Ambiente | H99: Numero De Planteles Intervenidos | I99: 0 | J99: 50
A100: Secretaría De BienestarDirección De Educación5Feria De La Oferta Educativa | B100: Secretaría De BienestarDirección De Educación5 | C100: =COUNTIF($E$2:E100,E100:E100) -> 5 | D100: Secretaría De Bienestar | E100: Dirección De Educación | F100: Feria De La Oferta Educativa | G100: Porcentaje De Escuelas Publicas Y Privadas Que Ofrecen Charlas Sobre Ofertas Educativas A Estudiantes De Secundaria, Impartidas | H100: Número De Charlas Impartidas | I100: 5000 | J100: 10000
A101: Secretaría De BienestarDirección De Educación6Reconocimiento A La Labor Docente Y Entrega De La Medalla "Francisco Silva Romero" | B101: Secretaría De BienestarDirección De Educación6 | C101: =COUNTIF($E$2:E101,E101:E101) -> 6 | D101: Secretaría De Bienestar | E101: Dirección De Educación | F101: Reconocimiento A La Labor Docente Y Entrega De La Medalla "Francisco Silva Romero" | G101: Porcentaje De Docentes Reconocidos Mediante La Entrega De La Medalla "Francisco Silva Romero" | H101: Número De Docentes Reconocidos | I101: 0 | J101: 50
A102: Secretaría De BienestarDirección De Programas Sociales Para El Bienestar1Aprendiendo Con Bienestar | B102: Secretaría De BienestarDirección De Programas Sociales Para El Bienestar1 | C102: =COUNTIF($E$2:E102,E102:E102) -> 1 | D102: Secretaría De Bienestar | E102: Dirección De Programas Sociales Para El Bienestar | F102: Aprendiendo Con Bienestar | G102: Útiles Escolares | H102: Número De Alumnos Inscritos En Matrícula De Educación Básica Pública | I102: 0 | J102: 100
A103: Secretaría De BienestarDirección De Programas Sociales Para El Bienestar2Bienestar Incluyente | B103: Secretaría De BienestarDirección De Programas Sociales Para El Bienestar2 | C103: =COUNTIF($E$2:E103,E103:E103) -> 2 | D103: Secretaría De Bienestar | E103: Dirección De Programas Sociales Para El Bienestar | F103: Bienestar Incluyente | G103: Apoyar En Las Personas Con Alguna Discapacidad De San Pedro Tlaquepaque | H103: Presupuesto Ejercido Por Entrega | I103: 0 | J103: 48000600
A104: Secretaría De BienestarDirección De Programas Sociales Para El Bienestar3Líderes De Esperanza | B104: Secretaría De BienestarDirección De Programas Sociales Para El Bienestar3 | C104: =COUNTIF($E$2:E104,E104:E104) -> 3 | D104: Secretaría De Bienestar | E104: Dirección De Programas Sociales Para El Bienestar | F104: Líderes De Esperanza | G104: Apoyar A Mujeres Líderes Del Hogar, Y Tutoras De San Pedro Tlaquepaque | H104: Presupuesto Ejercido Por Entrega | I104: 0 | J104: 55000000
A105: Secretaría De BienestarDirección De Programas Sociales Para El Bienestar4Raíces De Esperanza | B105: Secretaría De BienestarDirección De Programas Sociales Para El Bienestar4 | C105: =COUNTIF($E$2:E105,E105:E105) -> 4 | D105: Secretaría De Bienestar | E105: Dirección De Programas Sociales Para El Bienestar | F105: Raíces De Esperanza | G105: Artesanas Y Artesanos De San Pedro Tlaquepaque Inscritos En El Programa | H105: 428 | I105: 0 | J105: 428
A106: Secretaría De BienestarSubdirección De Desarrollo Y Atención Al Sector Agropecuario1Material Incorporado A Los Caminos Rurales | B106: Secretaría De BienestarSubdirección De Desarrollo Y Atención Al Sector Agropecuario1 | C106: =COUNTIF($E$2:E106,E106:E106) -> 1 | D106: Secretaría De Bienestar | E106: Subdirección De Desarrollo Y Atención Al Sector Agropecuario | F106: Material Incorporado A Los Caminos Rurales | G106: Porcentaje De Gestiones Para La Compra De Material Incorporado A Los Caminos Rurales | H106: Número De Gestiones Realizadas | I106: 0 | J106: 5
A107: Secretaría De BienestarSubdirección De Desarrollo Y Atención Al Sector Agropecuario2Material Incorporado A Los Caminos Rurales | B107: Secretaría De BienestarSubdirección De Desarrollo Y Atención Al Sector Agropecuario2 | C107: =COUNTIF($E$2:E107,E107:E107) -> 2 | D107: Secretaría De Bienestar | E107: Subdirección De Desarrollo Y Atención Al Sector Agropecuario | F107: Material Incorporado A Los Caminos Rurales | G107: Porcentaje De Viajes Con El Material Que Se Incorporara A Los Caminos Rurales | H107: Número De Gestiones Realizadas | I107: 0 | J107: 100
A108: Secretaría De BienestarSubdirección De Desarrollo Y Atención Al Sector Agropecuario3Mejorador De Suelos Para Parcelas Agrícolas | B108: Secretaría De BienestarSubdirección De Desarrollo Y Atención Al Sector Agropecuario3 | C108: =COUNTIF($E$2:E108,E108:E108) -> 3 | D108: Secretaría De Bienestar | E108: Subdirección De Desarrollo Y Atención Al Sector Agropecuario | F108: Mejorador De Suelos Para Parcelas Agrícolas | G108: Porcentaje De Toneladas De Cal Agrícola Adquiridas | H108: Numero De Toneladas Adquiridas | I108: 0 | J108: 700
A109: Secretaría De BienestarSubdirección De Desarrollo Y Atención Al Sector Agropecuario4Mejorador De Suelos Para Parcelas Agrícolas | B109: Secretaría De BienestarSubdirección De Desarrollo Y Atención Al Sector Agropecuario4 | C109: =COUNTIF($E$2:E109,E109:E109) -> 4 | D109: Secretaría De Bienestar | E109: Subdirección De Desarrollo Y Atención Al Sector Agropecuario | F109: Mejorador De Suelos Para Parcelas Agrícolas | G109: Porcentaje De Toneladas De Composta Adquiridas | H109: Numero De Toneladas Adquiridas | I109: 0 | J109: 700
A110: Secretaría De BienestarSubdirección De Desarrollo Y Atención Al Sector Agropecuario5Rehabilitación Permanente De Caminos Rurales | B110: Secretaría De BienestarSubdirección De Desarrollo Y Atención Al Sector Agropecuario5 | C110: =COUNTIF($E$2:E110,E110:E110) -> 5 | D110: Secretaría De Bienestar | E110: Subdirección De Desarrollo Y Atención Al Sector Agropecuario | F110: Rehabilitación Permanente De Caminos Rurales | G110: Porcentaje De Etapas De Gestión Para La Adquisición De Una Moto Conformadora. | H110: Número De Etapas De Gestión Realizadas | I110: 0 | J110: 4
A111: Secretaría De BienestarSubdirección De Desarrollo Y Atención Al Sector Agropecuario6Pozos De Absorción Tecnificados. | B111: Secretaría De BienestarSubdirección De Desarrollo Y Atención Al Sector Agropecuario6 | C111: =COUNTIF($E$2:E111,E111:E111) -> 6 | D111: Secretaría De Bienestar | E111: Subdirección De Desarrollo Y Atención Al Sector Agropecuario | F111: Pozos De Absorción Tecnificados. | G111: Porcentaje De Pozos De Absorción Tecnificados Construidos. | H111: Pozos De Absorción Construidos. | I111: 10 | J111: 10
A112: Secretaría De BienestarDirección De Vinculación Con Sectores Sociales1Raíces De Bienestar | B112: Secretaría De BienestarDirección De Vinculación Con Sectores Sociales1 | C112: =COUNTIF($E$2:E112,E112:E112) -> 1 | D112: Secretaría De Bienestar | E112: Dirección De Vinculación Con Sectores Sociales | F112: Raíces De Bienestar | G112: Porcentaje De Talleres De Concientización Imprentadas En El H. Ayuntamiento | H112: Talleres Impartidos A Pueblos Originarios | I112: 0 | J112: 22
A113: Secretaría De BienestarSubdirección De Desarrollo Y Atención Al Sector Agropecuario7Mantenimiento Del Dron Agrícola | B113: Secretaría De BienestarSubdirección De Desarrollo Y Atención Al Sector Agropecuario7 | C113: =COUNTIF($E$2:E113,E113:E113) -> 7 | D113: Secretaría De Bienestar | E113: Subdirección De Desarrollo Y Atención Al Sector Agropecuario | F113: Mantenimiento Del Dron Agrícola | G113: Porcentaje En La Gestión Para El Mantenimiento Del Dron Agrícola | H113: Número De Gestiones Realizadas | I113: 0 | J113: 5
A114: Secretaría De BienestarSubdirección De Desarrollo Y Atención Al Sector Agropecuario8Hidroponía | B114: Secretaría De BienestarSubdirección De Desarrollo Y Atención Al Sector Agropecuario8 | C114: =COUNTIF($E$2:E114,E114:E114) -> 8 | D114: Secretaría De Bienestar | E114: Subdirección De Desarrollo Y Atención Al Sector Agropecuario | F114: Hidroponía | G114: Porcentaje De Huertos De Hidroponía Creados En El Municipio | H114: Número De Huertos Creados | I114: 0 | J114: 40
A115: Secretaría De BienestarSubdirección De Desarrollo Y Atención Al Sector Agropecuario9Rehabilitación Permanente De Caminos Rurales | B115: Secretaría De BienestarSubdirección De Desarrollo Y Atención Al Sector Agropecuario9 | C115: =COUNTIF($E$2:E115,E115:E115) -> 9 | D115: Secretaría De Bienestar | E115: Subdirección De Desarrollo Y Atención Al Sector Agropecuario | F115: Rehabilitación Permanente De Caminos Rurales | G115: Porcentaje de caminos rurales reahabilitados | H115: Número de caminos rehabilitados | I115: 0 | J115: 60
A116: Secretaría De Fomento Económico Y CulturalDirección De Cultura1Preservación De Tradiciones Cultural | B116: Secretaría De Fomento Económico Y CulturalDirección De Cultura1 | C116: =COUNTIF($E$2:E116,E116:E116) -> 1 | D116: Secretaría De Fomento Económico Y Cultural | E116: Dirección De Cultura | F116: Preservación De Tradiciones Cultural | G116: Porcentaje De Murales Realizados | H116: Número De Murales Realizados | I116: 0 | J116: 5
A117: Secretaría De Fomento Económico Y CulturalDirección De Cultura2Preservación De Tradiciones Cultural | B117: Secretaría De Fomento Económico Y CulturalDirección De Cultura2 | C117: =COUNTIF($E$2:E117,E117:E117) -> 2 | D117: Secretaría De Fomento Económico Y Cultural | E117: Dirección De Cultura | F117: Preservación De Tradiciones Cultural | G117: Porcentaje De Presentaciones Realizadas | H117: Número De Presentaciones Realizadas | I117: 0 | J117: 8
A118: Secretaría De Fomento Económico Y CulturalAdministración Del Centro Cultural El Refugio1Acondicionamiento Y Equipamiento Del Refugio | B118: Secretaría De Fomento Económico Y CulturalAdministración Del Centro Cultural El Refugio1 | C118: =COUNTIF($E$2:E118,E118:E118) -> 1 | D118: Secretaría De Fomento Económico Y Cultural | E118: Administración Del Centro Cultural El Refugio | F118: Acondicionamiento Y Equipamiento Del Refugio | G118: Porcentaje De Etapas De Gestión Del Programa Dentro Del Centro Cultural El Refugio. | H118: Número De Etapas Realizadas | I118: 0 | J118: 5
A119: Secretaría De Fomento Económico Y CulturalAdministración Del Centro Cultural El Refugio2Mantenimiento Del Centro Cultural El Refugio | B119: Secretaría De Fomento Económico Y CulturalAdministración Del Centro Cultural El Refugio2 | C119: =COUNTIF($E$2:E119,E119:E119) -> 2 | D119: Secretaría De Fomento Económico Y Cultural | E119: Administración Del Centro Cultural El Refugio | F119: Mantenimiento Del Centro Cultural El Refugio | G119: Porcentaje De Etapas De Gestión Para El Mantenimiento Del Centro Cultural El Refugio, Realizadas. | H119: Número De Etapas Realizadas | I119: 0 | J119: 6
A120: Secretaría De Fomento Económico Y CulturalDirección Del Centro Histórico1Agenda Del Espacio Público | B120: Secretaría De Fomento Económico Y CulturalDirección Del Centro Histórico1 | C120: =COUNTIF($E$2:E120,E120:E120) -> 1 | D120: Secretaría De Fomento Económico Y Cultural | E120: Dirección Del Centro Histórico | F120: Agenda Del Espacio Público | G120: Porcentaje De Autorizaciones Emitidas Para El Uso Del Espacio Público Del Centro Histórico | H120: Número De Autorizaciones Emitidas | I120: 80 | J120: 120
A121: Secretaría De Fomento Económico Y CulturalDirección Del Centro Histórico2Casa Colibrí | B121: Secretaría De Fomento Económico Y CulturalDirección Del Centro Histórico2 | C121: =COUNTIF($E$2:E121,E121:E121) -> 2 | D121: Secretaría De Fomento Económico Y Cultural | E121: Dirección Del Centro Histórico | F121: Casa Colibrí | G121: Porcentaje De Exposiciones Realizadas | H121: Número De Exposiciones Realizadas | I121: 0 | J121: 5
A122: Secretaría De Fomento Económico Y CulturalDirección Del Centro Histórico3Mantenimiento Y Conservación Del Centro Histórico | B122: Secretaría De Fomento Económico Y CulturalDirección Del Centro Histórico3 | C122: =COUNTIF($E$2:E122,E122:E122) -> 3 | D122: Secretaría De Fomento Económico Y Cultural | E122: Dirección Del Centro Histórico | F122: Mantenimiento Y Conservación Del Centro Histórico | G122: Porcentaje De Actividades De Mantenimiento Y Conservación Del Centro Histórico | H122: Número De Actividades Realizadas | I122: 240 | J122: 400
A123: Secretaría De Fomento Económico Y CulturalDirección De Cultura3Desarrollo Cultural | B123: Secretaría De Fomento Económico Y CulturalDirección De Cultura3 | C123: =COUNTIF($E$2:E123,E123:E123) -> 3 | D123: Secretaría De Fomento Económico Y Cultural | E123: Dirección De Cultura | F123: Desarrollo Cultural | G123: Porcentaje De Actividades Realizadas En Las Colonias Del Municipio | H123: Número De Actividades Realizadas | I123: 0 | J123: 10
A124: Secretaría De Fomento Económico Y CulturalDirección De Desarrollo Artesanal Y Turístico1Capacitación | B124: Secretaría De Fomento Económico Y CulturalDirección De Desarrollo Artesanal Y Turístico1 | C124: =COUNTIF($E$2:E124,E124:E124) -> 1 | D124: Secretaría De Fomento Económico Y Cultural | E124: Dirección De Desarrollo Artesanal Y Turístico | F124: Capacitación | G124: Porcentaje de capacitaciones y talleres impartidos a los artesanos del municipio | H124: Numero de capacitaciones y talleres impartidos | I124: 9 | J124: 12
A125: Secretaría De Fomento Económico Y CulturalDirección De Desarrollo Artesanal Y Turístico2Padrón Artesanal Y Credencialización | B125: Secretaría De Fomento Económico Y CulturalDirección De Desarrollo Artesanal Y Turístico2 | C125: =COUNTIF($E$2:E125,E125:E125) -> 2 | D125: Secretaría De Fomento Económico Y Cultural | E125: Dirección De Desarrollo Artesanal Y Turístico | F125: Padrón Artesanal Y Credencialización | G125: Porcentaje de actualizción del Padrón de Beneficiarios | H125: Número de visitas de verificación en el padrón | I125: 492 | J125: 492
A126: Secretaría De Fomento Económico Y CulturalDirección De Desarrollo Artesanal Y Turístico3Rescatando Nuestras Tradiciones | B126: Secretaría De Fomento Económico Y CulturalDirección De Desarrollo Artesanal Y Turístico3 | C126: =COUNTIF($E$2:E126,E126:E126) -> 3 | D126: Secretaría De Fomento Económico Y Cultural | E126: Dirección De Desarrollo Artesanal Y Turístico | F126: Rescatando Nuestras Tradiciones | G126: Porcentaje de talleres para rescatar tradiciones artesanales, impartidos | H126: Numero de talleres impartidos | I126: 50 | J126: 60
A127: Secretaría De Fomento Económico Y CulturalDirección De Desarrollo Artesanal Y Turístico4Atención De Visitantes En Módulos | B127: Secretaría De Fomento Económico Y CulturalDirección De Desarrollo Artesanal Y Turístico4 | C127: =COUNTIF($E$2:E127,E127:E127) -> 4 | D127: Secretaría De Fomento Económico Y Cultural | E127: Dirección De Desarrollo Artesanal Y Turístico | F127: Atención De Visitantes En Módulos | G127: Porcentaje de personas que visitan el municpio registrados en módulos de información, tour-operadores. | H127: Número de personas que visitan el municipio registrados en módulos de información, tour-operadores. | I127: 76000 | J127: 77000
A128: Secretaría De Fomento Económico Y CulturalDirección De Desarrollo Artesanal Y Turístico5Festivales, Eventos, Ferias Y Exposiciones. | B128: Secretaría De Fomento Económico Y CulturalDirección De Desarrollo Artesanal Y Turístico5 | C128: =COUNTIF($E$2:E128,E128:E128) -> 5 | D128: Secretaría De Fomento Económico Y Cultural | E128: Dirección De Desarrollo Artesanal Y Turístico | F128: Festivales, Eventos, Ferias Y Exposiciones. | G128: Porcentaje De Actividades Turísticas Y Culturales Que Promueven El Flujo De Visitantes, Realizadas | H128: Número De Actividades Turísticas Y Culturales Realizadas | I128: 17 | J128: 19
A129: Secretaría De Fomento Económico Y CulturalDirección De Desarrollo Artesanal Y Turístico6Permanencia Pueblo Mágico | B129: Secretaría De Fomento Económico Y CulturalDirección De Desarrollo Artesanal Y Turístico6 | C129: =COUNTIF($E$2:E129,E129:E129) -> 6 | D129: Secretaría De Fomento Económico Y Cultural | E129: Dirección De Desarrollo Artesanal Y Turístico | F129: Permanencia Pueblo Mágico | G129: Porcentaje De Personas Que Visitan El Municipio Registrados En Módulos De Información, Tour-Operadores Y Hoteles | H129: Número De Visitantes Registrados | I129: 400000 | J129: 405000
A130: Secretaría De Fomento Económico Y CulturalDirección De Gestión Empresarial E Industrial1Asesoría Personalizada De Emprendimiento | B130: Secretaría De Fomento Económico Y CulturalDirección De Gestión Empresarial E Industrial1 | C130: =COUNTIF($E$2:E130,E130:E130) -> 1 | D130: Secretaría De Fomento Económico Y Cultural | E130: Dirección De Gestión Empresarial E Industrial | F130: Asesoría Personalizada De Emprendimiento | G130: Porcentaje De Personas Capacitadas En Temas Empresariales. | H130: Número De Personas Capacitadas En Temas Empresariales | I130: 100 | J130: 120
A131: Secretaría De Fomento Económico Y CulturalDirección De Gestión Empresarial E Industrial2 Empleo A Tu Alcance | B131: =D131&E131&C131 -> Secretaría De Fomento Económico Y CulturalDirección De Gestión Empresarial E Industrial2 | C131: =COUNTIF($E$2:E131,E131:E131) -> 2 | D131: Secretaría De Fomento Económico Y Cultural | E131: Dirección De Gestión Empresarial E Industrial | F131: Empleo A Tu Alcance | G131: Porcentaje De Personas Beneficiadas Con Alguna Vacante, Mediante El Programa Empleo A Tu Alcance | H131: Número De Personas Beneficiarias | I131: 300 | J131: 350
A132: Secretaría De Fomento Económico Y CulturalDirección De Gestión Empresarial E Industrial3Vinculación Con Empresas | B132: Secretaría De Fomento Económico Y CulturalDirección De Gestión Empresarial E Industrial3 | C132: =COUNTIF($E$2:E132,E132:E132) -> 3 | D132: Secretaría De Fomento Económico Y Cultural | E132: Dirección De Gestión Empresarial E Industrial | F132: Vinculación Con Empresas | G132: Porcentaje De Empresarios Atendidos Mediante La Vinculación Con Las Áreas Correspondientes | H132: Número De Empresarios Atendidos | I132: 30 | J132: 35
A133: Secretaría De Fomento Económico Y CulturalSecretaria De Fomento Económico Y Cultural 1Festivales, Eventos Y Ferias | B133: Secretaría De Fomento Económico Y CulturalSecretaria De Fomento Económico Y Cultural 1 | C133: =COUNTIF($E$2:E133,E133:E133) -> 1 | D133: Secretaría De Fomento Económico Y Cultural | E133: Secretaria De Fomento Económico Y Cultural | F133: Festivales, Eventos Y Ferias | G133: Festivales, Actividades Y Eventos. | H133: Numero De Festivales, Eventos, Actividades. | I133: 7 | J133: 12
A134: Secretaría De Fomento Económico Y CulturalSubdirección De Bibliotecas1Talleres De Fomento A Cultura | B134: Secretaría De Fomento Económico Y CulturalSubdirección De Bibliotecas1 | C134: =COUNTIF($E$2:E134,E134:E134) -> 1 | D134: Secretaría De Fomento Económico Y Cultural | E134: Subdirección De Bibliotecas | F134: Talleres De Fomento A Cultura | G134: Porcentaje De Personas Atendidas Mediante Los Talleres De Fomento A La Cultura. | H134: Numero De Personas Atendidas | I134: 100000 | J134: 110000
A135: Secretaría De Fomento Económico Y CulturalSubDirección De Museos1Renovación Museográfica Y Digitalización | B135: Secretaría De Fomento Económico Y CulturalSubDirección De Museos1 | C135: =COUNTIF($E$2:E135,E135:E135) -> 1 | D135: Secretaría De Fomento Económico Y Cultural | E135: SubDirección De Museos | F135: Renovación Museográfica Y Digitalización | G135: _Renovación Museográfica: 3 Salas Remodeladas - Adquisición De Equipo: Luminarias Led Profesionales - Producción Digital: 1 Recorrido Virtual Interactivo - Materiales Gráficos: Impresiones Educativas | H135: Número De Visitantes | I135: 18000 | J135: 20000
A136: Secretaría De Fomento Económico Y CulturalSubDirección De Museos2Exposiciones Temporales | B136: Secretaría De Fomento Económico Y CulturalSubDirección De Museos2 | C136: =COUNTIF($E$2:E136,E136:E136) -> 2 | D136: Secretaría De Fomento Económico Y Cultural | E136: SubDirección De Museos | F136: Exposiciones Temporales | G136: Porcentaje De Visitante Anuales. | H136: Número De Visitantes | I136: 18000 | J136: 20000
A137: Secretaría De Fomento Económico Y CulturalSubdirección De Promoción Y Difusión Cultural1Desarrollo Artístico | B137: Secretaría De Fomento Económico Y CulturalSubdirección De Promoción Y Difusión Cultural1 | C137: =COUNTIF($E$2:E137,E137:E137) -> 1 | D137: Secretaría De Fomento Económico Y Cultural | E137: Subdirección De Promoción Y Difusión Cultural | F137: Desarrollo Artístico | G137: Porcentaje De Avance En La Promoción Y Organización De Cursos, Talleres, Para El Desarrollo De Capacidades Artísticas | H137: Número De Cursos, Talleres, Realizados | I137: 25 | J137: 30
A138: Secretaría De Fomento Económico Y CulturalDirección De Desarrollo Artesanal Y Turístico7Padrón Artesanal Y Credencialización | B138: Secretaría De Fomento Económico Y CulturalDirección De Desarrollo Artesanal Y Turístico7 | C138: =COUNTIF($E$2:E138,E138:E138) -> 7 | D138: Secretaría De Fomento Económico Y Cultural | E138: Dirección De Desarrollo Artesanal Y Turístico | F138: Padrón Artesanal Y Credencialización | G138: Porcentaje de credenciales expedidas a los artesanos | H138: Numero de credenciales expedidas | I138: 492 | J138: 492
A139: Secretaría De Gobernanza Y TerritorioDepartamento De Asuntos Religiosos1Servicio De Atención A Las Necesidades De Las Distintas Asociaciones Religiosas | B139: Secretaría De Gobernanza Y TerritorioDepartamento De Asuntos Religiosos1 | C139: =COUNTIF($E$2:E139,E139:E139) -> 1 | D139: Secretaría De Gobernanza Y Territorio | E139: Departamento De Asuntos Religiosos | F139: Servicio De Atención A Las Necesidades De Las Distintas Asociaciones Religiosas | G139: Porcentaje De Asociaciones Religiosas Atendidas | H139: Número De Asociaciones Religiosas Atendidas | I139: 180 | J139: 225
A140: Secretaría De Gobernanza Y TerritorioDirección De Delegaciones Y Agencias Municipales1Actividades Administrativas | B140: Secretaría De Gobernanza Y TerritorioDirección De Delegaciones Y Agencias Municipales1 | C140: =COUNTIF($E$2:E140,E140:E140) -> 1 | D140: Secretaría De Gobernanza Y Territorio | E140: Dirección De Delegaciones Y Agencias Municipales | F140: Actividades Administrativas | G140: Porcentaje De Solicitudes De Comprobantes De Domicilio Expedidas | H140: Numero De Solicitudes De Comprobantes De Domicilio Expedidos | I140: 4650 | J140: 5500
A141: Secretaría De Gobernanza Y TerritorioDirección De Delegaciones Y Agencias Municipales2Atención A Solicitudes Ciudadanas | B141: Secretaría De Gobernanza Y TerritorioDirección De Delegaciones Y Agencias Municipales2 | C141: =COUNTIF($E$2:E141,E141:E141) -> 2 | D141: Secretaría De Gobernanza Y Territorio | E141: Dirección De Delegaciones Y Agencias Municipales | F141: Atención A Solicitudes Ciudadanas | G141: Porcentaje De Solicitudes Canalizadas Para Su Atención | H141: Porcentaje Número De Solicitudes Canalizadas | I141: 2000 | J141: 2250
A142: Secretaría De Gobernanza Y TerritorioDirección De Delegaciones Y Agencias Municipales3Festividades Tradicionales | B142: Secretaría De Gobernanza Y TerritorioDirección De Delegaciones Y Agencias Municipales3 | C142: =COUNTIF($E$2:E142,E142:E142) -> 3 | D142: Secretaría De Gobernanza Y Territorio | E142: Dirección De Delegaciones Y Agencias Municipales | F142: Festividades Tradicionales | G142: Porcentaje De Asistentes A Las Festividades Porcentaje De Asistentes A Las Festividades Tradicionales Realizadas | H142: Número De Asistentes A Las Festividades | I142: 4200 | J142: 5800
A143: Secretaría De Gobernanza Y TerritorioDirección De Delegaciones Y Agencias Municipales4Visitas A Colonias | B143: Secretaría De Gobernanza Y TerritorioDirección De Delegaciones Y Agencias Municipales4 | C143: =COUNTIF($E$2:E143,E143:E143) -> 4 | D143: Secretaría De Gobernanza Y Territorio | E143: Dirección De Delegaciones Y Agencias Municipales | F143: Visitas A Colonias | G143: Porcentaje De Recorridos Para La Detección De Las Problemáticas De Las Colonias Comunidades Del Municipio, Realizados | H143: Numero De Recorridos Realizados | I143: 1200 | J143: 1500
A144: Secretaría De Gobernanza Y TerritorioDirección De Archivo Municipal 1Programa Para La Clasificación, Organización, Transferencia, Resguardo Y Consulta De Información Oficial, Coordinado Por La Dirección De Archivo | B144: Secretaría De Gobernanza Y TerritorioDirección De Archivo Municipal 1 | C144: =COUNTIF($E$2:E144,E144:E144) -> 1 | D144: Secretaría De Gobernanza Y Territorio | E144: Dirección De Archivo Municipal | F144: Programa Para La Clasificación, Organización, Transferencia, Resguardo Y Consulta De Información Oficial, Coordinado Por La Dirección De Archivo | G144: Porcentaje De Etapas Para La Clasificación, Organización, Transferencia, Resguardo Y Consulta De Información Oficial | H144: Número De Etapas Realizadas | I144: 0 | J144: 6
A145: Secretaría De Gobernanza Y TerritorioDirección De Archivo Municipal 2Programa De Capacitación En Materia Archivística | B145: Secretaría De Gobernanza Y TerritorioDirección De Archivo Municipal 2 | C145: =COUNTIF($E$2:E145,E145:E145) -> 2 | D145: Secretaría De Gobernanza Y Territorio | E145: Dirección De Archivo Municipal | F145: Programa De Capacitación En Materia Archivística | G145: Porcentaje De Capacitaciones En Materia Archivística Realizadas Por La Dirección De Archivo | H145: Número De Capacitaciones Realizadas | I145: 9 | J145: 10
A146: =B146&F146 -> Secretaría De Gobernanza Y TerritorioDirección De Archivo Municipal 3Programa De Depuración, Baja Documental Y Transferencia Secundaria En El Archivo De Concentración | B146: Secretaría De Gobernanza Y TerritorioDirección De Archivo Municipal 3 | C146: =COUNTIF($E$2:E146,E146:E146) -> 3 | D146: Secretaría De Gobernanza Y Territorio | E146: Dirección De Archivo Municipal | F146: Programa De Depuración, Baja Documental Y Transferencia Secundaria En El Archivo De Concentración | G146: Porcentaje De Etapas Para Depurar, Dar De Baja Y Hacer La Transferencia Secundaria En Archivo De Concentración, Realizadas | H146: Número De Etapas Realizadas | I146: 0 | J146: 7
A147: Secretaría De Gobernanza Y TerritorioDirección De Archivo Municipal 4Proyecto Para La Adquisición Y Colocación De Elevador De Carga Hidráulico, Con Capacidad De 1,000 Kg Para El Archivo Municipal | B147: Secretaría De Gobernanza Y TerritorioDirección De Archivo Municipal 4 | C147: =COUNTIF($E$2:E147,E147:E147) -> 4 | D147: Secretaría De Gobernanza Y Territorio | E147: Dirección De Archivo Municipal | F147: Proyecto Para La Adquisición Y Colocación De Elevador De Carga Hidráulico, Con Capacidad De 1,000 Kg Para El Archivo Municipal | G147: Porcentaje De Etapas Para La Adquisición Y Colocación De Un Elevador De Carga Hidráulico Para El Archivo Municipal, Realizadas | H147: Número De Etapas Realizadas | I147: 0 | J147: 4
A148: Secretaría De Gobernanza Y TerritorioSubdirección De Inspección Ambiental1Concientización Y Regularización A Contribuyentes Que Tienen Talleres De Laminado Y Pintura | B148: Secretaría De Gobernanza Y TerritorioSubdirección De Inspección Ambiental1 | C148: =COUNTIF($E$2:E148,E148:E148) -> 1 | D148: Secretaría De Gobernanza Y Territorio | E148: Subdirección De Inspección Ambiental | F148: Concientización Y Regularización A Contribuyentes Que Tienen Talleres De Laminado Y Pintura | G148: Concientización Y Regularización A Contribuyentes Que Tienen Talleres De Laminado Y Pintura | H148: Inspeccionar Los Giros De Talleres De Laminado Y Pintura | I148: 40 | J148: 50
A149: Secretaría De Gobernanza Y TerritorioSubdirección De Inspección De Reglamentos1Verificación De Giros Comerciales Establecidos En El Municipio De San Pedro Tlaquepaque | B149: Secretaría De Gobernanza Y TerritorioSubdirección De Inspección De Reglamentos1 | C149: =COUNTIF($E$2:E149,E149:E149) -> 1 | D149: Secretaría De Gobernanza Y Territorio | E149: Subdirección De Inspección De Reglamentos | F149: Verificación De Giros Comerciales Establecidos En El Municipio De San Pedro Tlaquepaque | G149: Porcentaje De Visitas Realizadas A Los Comercios Establecidos Dentro Del Municipio De San Pedro Tlaquepaque Para Inspección | H149: Número De Visitas Realizadas | I149: 5200 | J149: 5200
A150: Secretaría De Gobernanza Y TerritorioSubdirección De Atención E Inspección A Mercados.1Recuperación De Locales Abandonados En Mercados Municipales. | B150: Secretaría De Gobernanza Y TerritorioSubdirección De Atención E Inspección A Mercados.1 | C150: =COUNTIF($E$2:E150,E150:E150) -> 1 | D150: Secretaría De Gobernanza Y Territorio | E150: Subdirección De Atención E Inspección A Mercados. | F150: Recuperación De Locales Abandonados En Mercados Municipales. | G150: Porcentaje En La Realización De Acciones Tendientes A La Recuperación De Locales Comerciales En Estado De Abandono. | H150: Etapas Realizadas | I150: 0 | J150: 4
A151: Secretaría De Gobernanza Y TerritorioDirección De Padrón Y Licencias1Revalidación En Digital De Los Documentos Para Tramites De Licencia | B151: Secretaría De Gobernanza Y TerritorioDirección De Padrón Y Licencias1 | C151: =COUNTIF($E$2:E151,E151:E151) -> 1 | D151: Secretaría De Gobernanza Y Territorio | E151: Dirección De Padrón Y Licencias | F151: Revalidación En Digital De Los Documentos Para Tramites De Licencia | G151: Disminución Burocrática Porcentaje De Revalidaciones En Digital Para Tramitar Licencias, Realizadas | H151: El Tiempo De Resolución De Ingreso Del Tramite Número De Revalidaciones Realizadas | I151: 0 | J151: 500
A152: Secretaría De Gobernanza Y TerritorioDepartamento De Pasaportes1Trámite De Pasaporte Mexicano En Oficina De Enlace De Tlaquepaque | B152: Secretaría De Gobernanza Y TerritorioDepartamento De Pasaportes1 | C152: =COUNTIF($E$2:E152,E152:E152) -> 1 | D152: Secretaría De Gobernanza Y Territorio | E152: Departamento De Pasaportes | F152: Trámite De Pasaporte Mexicano En Oficina De Enlace De Tlaquepaque | G152: Porcentaje De Trámites De Expedición De Pasaportes Realizados En La Oficina De Enlace Pila Seca. | H152: Solicitud De Trámite De Pasaporte | I152: 9000 | J152: 9500
A153: Secretaría De Gobernanza Y TerritorioSubdirección De Atención E Inspección A Tianguis Y Espacios Abiertos1Operativos En Espacios Abiertos | B153: Secretaría De Gobernanza Y TerritorioSubdirección De Atención E Inspección A Tianguis Y Espacios Abiertos1 | C153: =COUNTIF($E$2:E153,E153:E153) -> 1 | D153: Secretaría De Gobernanza Y Territorio | E153: Subdirección De Atención E Inspección A Tianguis Y Espacios Abiertos | F153: Operativos En Espacios Abiertos | G153: Porcentaje de colonias inspeccionadas en el cumplimiento de la normatividad. | H153: Numero De Colonias Inspeccionadas | I153: 20 | J153: 41
A154: Secretaría De Gobernanza Y TerritorioSubdirección De Atención E Inspección A Tianguis Y Espacios Abiertos2Actualizar Los Padrones De Los Comerciantes De Tianguis | B154: Secretaría De Gobernanza Y TerritorioSubdirección De Atención E Inspección A Tianguis Y Espacios Abiertos2 | C154: =COUNTIF($E$2:E154,E154:E154) -> 2 | D154: Secretaría De Gobernanza Y Territorio | E154: Subdirección De Atención E Inspección A Tianguis Y Espacios Abiertos | F154: Actualizar Los Padrones De Los Comerciantes De Tianguis | G154: Porcentaje De Comerciantes Regularizados En Los Censos | H154: Numero De Comerciantes Regularizados | I154: 150 | J154: 270
A155: Secretaría De La Consejería JurídicaDirección De Derechos Humanos 1Atención A Quejas En Materia De Derechos Humanos | B155: Secretaría De La Consejería JurídicaDirección De Derechos Humanos 1 | C155: =COUNTIF($E$2:E155,E155:E155) -> 1 | D155: Secretaría De La Consejería Jurídica | E155: Dirección De Derechos Humanos | F155: Atención A Quejas En Materia De Derechos Humanos | G155: Porcentaje De Quejas Ciudadanas En Materia De Derechos Humanos, Atendidas | H155: Número De Quejas Atendidas | I155: 0 | J155: 250
A156: Secretaría De La Consejería JurídicaDirección Legal-Consultiva1Consultas Y Asesoría Jurídica | B156: Secretaría De La Consejería JurídicaDirección Legal-Consultiva1 | C156: =COUNTIF($E$2:E156,E156:E156) -> 1 | D156: Secretaría De La Consejería Jurídica | E156: Dirección Legal-Consultiva | F156: Consultas Y Asesoría Jurídica | G156: Porcentaje De Atenciones A Consultas Y Asesoría Jurídica, Realizadas | H156: Número De Atenciones A Consultas Y Asesoría Jurídica, Realizadas | I156: 0 | J156: 60
A157: Secretaría De La Consejería JurídicaDirección Legal-Consultiva2Opiniones Jurídicas | B157: Secretaría De La Consejería JurídicaDirección Legal-Consultiva2 | C157: =COUNTIF($E$2:E157,E157:E157) -> 2 | D157: Secretaría De La Consejería Jurídica | E157: Dirección Legal-Consultiva | F157: Opiniones Jurídicas | G157: Porcentaje De Opiniones Jurídicas Emitidas | H157: Número De Opiniones Jurídicas Emitidas | I157: 0 | J157: 60
A158: Secretaría De La Consejería JurídicaDirección De Apoyo A Cabildo1Apoyo Asuntos Derivados Por Secretaría | B158: Secretaría De La Consejería JurídicaDirección De Apoyo A Cabildo1 | C158: =COUNTIF($E$2:E158,E158:E158) -> 1 | D158: Secretaría De La Consejería Jurídica | E158: Dirección De Apoyo A Cabildo | F158: Apoyo Asuntos Derivados Por Secretaría | G158: Porcentaje De Gestiones Y Asuntos Derivados Y Con Seguimiento Realizadas | H158: Número De Gestiones Y Asuntos Derivados Con Seguimiento | I158: 0 | J158: 40
A159: Secretaría De La Consejería JurídicaDirección De Apoyo A Cabildo2Consolidar El Sistema De Información De Acuerdos Del Pleno | B159: Secretaría De La Consejería JurídicaDirección De Apoyo A Cabildo2 | C159: =COUNTIF($E$2:E159,E159:E159) -> 2 | D159: Secretaría De La Consejería Jurídica | E159: Dirección De Apoyo A Cabildo | F159: Consolidar El Sistema De Información De Acuerdos Del Pleno | G159: Porcentaje De Avance En La Identificación Del Estatus Que Guardan Los Puntos De Acuerdo Aprobados Por El Pleno Del Ayuntamiento | H159: Número De Puntos De Acuerdo Identificados En Estatus De Seguimiento | I159: 0 | J159: 40
A160: Secretaría De La Consejería JurídicaDirección De Apoyo A Cabildo3Integración, Dictaminación De Iniciativas | B160: Secretaría De La Consejería JurídicaDirección De Apoyo A Cabildo3 | C160: =COUNTIF($E$2:E160,E160:E160) -> 3 | D160: Secretaría De La Consejería Jurídica | E160: Dirección De Apoyo A Cabildo | F160: Integración, Dictaminación De Iniciativas | G160: Porcentaje De Iniciativas Elaboradas | H160: Número De Iniciativas Elaboradas | I160: 0 | J160: 50
A161: Secretaría De La Consejería JurídicaDirección De Apoyo A Cabildo4Participación En Sesiones Del Ayuntamiento | B161: Secretaría De La Consejería JurídicaDirección De Apoyo A Cabildo4 | C161: =COUNTIF($E$2:E161,E161:E161) -> 4 | D161: Secretaría De La Consejería Jurídica | E161: Dirección De Apoyo A Cabildo | F161: Participación En Sesiones Del Ayuntamiento | G161: Porcentaje De Sesiones Del Pleno Realizadas | H161: Número De Sesiones Realizadas | I161: 0 | J161: 15
A162: Secretaría De La Consejería JurídicaDirección De Apoyo A Cabildo5Sitio Web De Actas Y Acuerdos | B162: Secretaría De La Consejería JurídicaDirección De Apoyo A Cabildo5 | C162: =COUNTIF($E$2:E162,E162:E162) -> 5 | D162: Secretaría De La Consejería Jurídica | E162: Dirección De Apoyo A Cabildo | F162: Sitio Web De Actas Y Acuerdos | G162: Porcentaje De Avance En Las Etapas De Actualización Del Sitio Web De Actas Y Acuerdos | H162: Número De Etapas Realizadas | I162: 4 | J162: 5
A163: Secretaría De La Consejería JurídicaDirección De Mediación1Fortalecimiento Del Proceso De Levantamiento De Actas De Infracción | B163: Secretaría De La Consejería JurídicaDirección De Mediación1 | C163: =COUNTIF($E$2:E163,E163:E163) -> 1 | D163: Secretaría De La Consejería Jurídica | E163: Dirección De Mediación | F163: Fortalecimiento Del Proceso De Levantamiento De Actas De Infracción | G163: Porcentaje de Servidores Públicos Capacitados en Temas de llenado Correcto de Actas de Infracción | H163: Número De Servidores Públicos Capacitados | I163: 10 | J163: 60
A164: Secretaría De La Consejería JurídicaDirección De Mediación2Taller De Educación Cívica Para Reincidentes De Faltas Administrativas | B164: Secretaría De La Consejería JurídicaDirección De Mediación2 | C164: =COUNTIF($E$2:E164,E164:E164) -> 2 | D164: Secretaría De La Consejería Jurídica | E164: Dirección De Mediación | F164: Taller De Educación Cívica Para Reincidentes De Faltas Administrativas | G164: Porcentaje De Talleres De Educación Cívica, A Persona Infractoras Realizados | H164: Número De Talleres Realizados | I164: 0 | J164: 12
A165: Secretaría De La Consejería JurídicaDirección Del Registro Civil1Campaña De Integración Familiar 2026 | B165: Secretaría De La Consejería JurídicaDirección Del Registro Civil1 | C165: =COUNTIF($E$2:E165,E165:E165) -> 1 | D165: Secretaría De La Consejería Jurídica | E165: Dirección Del Registro Civil | F165: Campaña De Integración Familiar 2026 | G165: Porcentaje De Actas De Matrimonio Realizadas En La Campaña De Integración Familiar 2026 | H165: Número De Actas Realizadas | I165: 421 | J165: 430
A166: Secretaría De La Consejería JurídicaDirección Del Registro Civil2Campaña De Integración Familiar 2026 | B166: Secretaría De La Consejería JurídicaDirección Del Registro Civil2 | C166: =COUNTIF($E$2:E166,E166:E166) -> 2 | D166: Secretaría De La Consejería Jurídica | E166: Dirección Del Registro Civil | F166: Campaña De Integración Familiar 2026 | G166: Porcentaje de Actas de Nacimiento Extemporaneas en la Campaña de Integración Familiar 2026 | H166: Número De Actas Realizadas | I166: 103 | J166: 110
A167: Secretaría De La Consejería JurídicaDirección Del Registro Civil3Campaña De Integración Familiar 2026 | B167: Secretaría De La Consejería JurídicaDirección Del Registro Civil3 | C167: =COUNTIF($E$2:E167,E167:E167) -> 3 | D167: Secretaría De La Consejería Jurídica | E167: Dirección Del Registro Civil | F167: Campaña De Integración Familiar 2026 | G167: Porcentaje De Actas De Reconocimiento De Hijos En La Campaña De Integración Familiar 2026 | H167: Número De Actas Realizadas | I167: 34 | J167: 40
A168: Secretaría De La Consejería JurídicaDirección Del Registro Civil4Capacitaciones Al Personal Del Registro Civil | B168: Secretaría De La Consejería JurídicaDirección Del Registro Civil4 | C168: =COUNTIF($E$2:E168,E168:E168) -> 4 | D168: Secretaría De La Consejería Jurídica | E168: Dirección Del Registro Civil | F168: Capacitaciones Al Personal Del Registro Civil | G168: Porcentaje De Servidores Públicos Capacitados En Materia De Levantamiento De Actos En El Sistema Sid | H168: Número De Servidores Públicos Capacitados | I168: 0 | J168: 40
A169: Secretaría De La Consejería JurídicaDirección Del Registro Civil5Matrimonios Colectivos | B169: Secretaría De La Consejería JurídicaDirección Del Registro Civil5 | C169: =COUNTIF($E$2:E169,E169:E169) -> 5 | D169: Secretaría De La Consejería Jurídica | E169: Dirección Del Registro Civil | F169: Matrimonios Colectivos | G169: Porcentaje De Parejas Que Contrajeron Matrimonio Durante La Campaña | H169: Número De Parejas | I169: 394 | J169: 400
A170: Secretaría De La Consejería JurídicaSecretaría De La Consejería Jurídica1Atención Y Orientación Jurídica A Los Ciudadanos | B170: Secretaría De La Consejería JurídicaSecretaría De La Consejería Jurídica1 | C170: =COUNTIF($E$2:E170,E170:E170) -> 1 | D170: Secretaría De La Consejería Jurídica | E170: Secretaría De La Consejería Jurídica | F170: Atención Y Orientación Jurídica A Los Ciudadanos | G170: Porcentaje De Solicitudes De Atención Y Orientación A La Ciudadanía, Realizadas | H170: Número De Atenciones Y Orientaciones Realizadas | I170: 0 | J170: 18
A171: Secretaría De La Consejería JurídicaSecretaría De La Consejería Jurídica2Capacitación Jurídica Al Gobierno Municipal | B171: Secretaría De La Consejería JurídicaSecretaría De La Consejería Jurídica2 | C171: =COUNTIF($E$2:E171,E171:E171) -> 2 | D171: Secretaría De La Consejería Jurídica | E171: Secretaría De La Consejería Jurídica | F171: Capacitación Jurídica Al Gobierno Municipal | G171: Porcentaje De Capacitaciones Jurídicas Realizadas | H171: Número De Capacitaciones Realizadas | I171: 0 | J171: 2
A172: Secretaría De La Consejería JurídicaSecretaría De La Consejería Jurídica3Participación En Comisiones, Comités Y Grupos De Trabajo | B172: Secretaría De La Consejería JurídicaSecretaría De La Consejería Jurídica3 | C172: =COUNTIF($E$2:E172,E172:E172) -> 3 | D172: Secretaría De La Consejería Jurídica | E172: Secretaría De La Consejería Jurídica | F172: Participación En Comisiones, Comités Y Grupos De Trabajo | G172: Porcentaje De Atención A Comisiones, Comités, Grupos De Trabajo Y Reuniones | H172: Número De Asistencia A Comisiones, Comités, Grupos De Trabajo Y Reuniones | I172: 0 | J172: 10
A173: Secretaría De La Consejería JurídicaSecretaría De La Consejería Jurídica4Revisión De Documentos Para Firma De La Presidenta | B173: Secretaría De La Consejería JurídicaSecretaría De La Consejería Jurídica4 | C173: =COUNTIF($E$2:E173,E173:E173) -> 4 | D173: Secretaría De La Consejería Jurídica | E173: Secretaría De La Consejería Jurídica | F173: Revisión De Documentos Para Firma De La Presidenta | G173: Porcentaje De Documentos Revisados Para Firma Presidenta | H173: Número De Documentos Revisados | I173: 0 | J173: 900
A174: Secretaría De La Contraloría Municipal Y Combate A La CorrupciónAutoridad Investigadora1Fortalecimiento A La Autoridad Investigadora, Recepción De Quejas Ciudadanas Al Personal Operativo Y Personal Administrativo | B174: Secretaría De La Contraloría Municipal Y Combate A La CorrupciónAutoridad Investigadora1 | C174: =COUNTIF($E$2:E174,E174:E174) -> 1 | D174: Secretaría De La Contraloría Municipal Y Combate A La Corrupción | E174: Autoridad Investigadora | F174: Fortalecimiento A La Autoridad Investigadora, Recepción De Quejas Ciudadanas Al Personal Operativo Y Personal Administrativo | G174: Porcentaje de etapas De Gestión Realizadas Para El Fortalecimiento De La Autoridad Investigadora | H174: Número De Etapas Gestionadas Y Realizadas | I174: 1 | J174: 5
A175: Secretaría De La Contraloría Municipal Y Combate A La CorrupciónAutoridad Substanciadora1Fortalecimiento De Los Procedimientos De Responsabilidad Administrativa | B175: Secretaría De La Contraloría Municipal Y Combate A La CorrupciónAutoridad Substanciadora1 | C175: =COUNTIF($E$2:E175,E175:E175) -> 1 | D175: Secretaría De La Contraloría Municipal Y Combate A La Corrupción | E175: Autoridad Substanciadora | F175: Fortalecimiento De Los Procedimientos De Responsabilidad Administrativa | G175: Numero De Informes Recibidos Por La Autoridad Substanciadora | H175: Numero De Informes Recibidos Y Atendidos | I175: 0 | J175: 100
A176: Secretaría De La Contraloría Municipal Y Combate A La CorrupciónAutoridad Substanciadora2Fortalecimiento A La Autoridad Substanciadora, A Través De Personal Administrativo Y Suministros Materiales | B176: Secretaría De La Contraloría Municipal Y Combate A La CorrupciónAutoridad Substanciadora2 | C176: =COUNTIF($E$2:E176,E176:E176) -> 2 | D176: Secretaría De La Contraloría Municipal Y Combate A La Corrupción | E176: Autoridad Substanciadora | F176: Fortalecimiento A La Autoridad Substanciadora, A Través De Personal Administrativo Y Suministros Materiales | G176: Etapa De Gestión A Realizar Para El Fortalecimiento De La Autoridad Substanciadora | H176: Número De Etapas Gestionadas Y Realizadas | I176: 0 | J176: 100
A177: Secretaría De La Contraloría Municipal Y Combate A La CorrupciónDirección De Auditoría A La Obra Pública Y Servicios1Revisión Contable Y Administrativa De Expedientes De Obra Pública Municipal | B177: Secretaría De La Contraloría Municipal Y Combate A La CorrupciónDirección De Auditoría A La Obra Pública Y Servicios1 | C177: =COUNTIF($E$2:E177,E177:E177) -> 1 | D177: Secretaría De La Contraloría Municipal Y Combate A La Corrupción | E177: Dirección De Auditoría A La Obra Pública Y Servicios | F177: Revisión Contable Y Administrativa De Expedientes De Obra Pública Municipal | G177: Porcentaje De Auditorías A La Obra Pública Realizadas | H177: Número De Auditorías Realizadas | I177: 0 | J177: 3
A178: Secretaría De La Contraloría Municipal Y Combate A La CorrupciónDirección De Auditoria Gubernamental Y Combate A La Corrupción1Auditorias | B178: Secretaría De La Contraloría Municipal Y Combate A La CorrupciónDirección De Auditoria Gubernamental Y Combate A La Corrupción1 | C178: =COUNTIF($E$2:E178,E178:E178) -> 1 | D178: Secretaría De La Contraloría Municipal Y Combate A La Corrupción | E178: Dirección De Auditoria Gubernamental Y Combate A La Corrupción | F178: Auditorias | G178: Auditorías Concluidas | H178: Número De Auditorías Concluidas | I178: 2 | J178: 5
A179: Secretaría De La Contraloría Municipal Y Combate A La CorrupciónDirección De Auditoria Gubernamental Y Combate A La Corrupción2Procedimientos Por Robo Y Extravió | B179: Secretaría De La Contraloría Municipal Y Combate A La CorrupciónDirección De Auditoria Gubernamental Y Combate A La Corrupción2 | C179: =COUNTIF($E$2:E179,E179:E179) -> 2 | D179: Secretaría De La Contraloría Municipal Y Combate A La Corrupción | E179: Dirección De Auditoria Gubernamental Y Combate A La Corrupción | F179: Procedimientos Por Robo Y Extravió | G179: Procedimientos Por Robo Y Extravió Concluidos | H179: Número De Procedimientos Por Robo Y Extravió Concluidos | I179: 0 | J179: 8
A180: Secretaría De La Contraloría Municipal Y Combate A La CorrupciónDirección De Auditoria Gubernamental Y Combate A La Corrupción3Visitas De Inspección | B180: Secretaría De La Contraloría Municipal Y Combate A La CorrupciónDirección De Auditoria Gubernamental Y Combate A La Corrupción3 | C180: =COUNTIF($E$2:E180,E180:E180) -> 3 | D180: Secretaría De La Contraloría Municipal Y Combate A La Corrupción | E180: Dirección De Auditoria Gubernamental Y Combate A La Corrupción | F180: Visitas De Inspección | G180: Visitas De Inspección Concluidas | H180: Número De Visitas De Inspección Concluidas | I180: 0 | J180: 9
A181: Secretaría De La Contraloría Municipal Y Combate A La CorrupciónDirección De Responsabilidades Y Evolución Patrimonial1Concientización En Las Declaraciones Patrimoniales Y De Intereses | B181: Secretaría De La Contraloría Municipal Y Combate A La CorrupciónDirección De Responsabilidades Y Evolución Patrimonial1 | C181: =COUNTIF($E$2:E181,E181:E181) -> 1 | D181: Secretaría De La Contraloría Municipal Y Combate A La Corrupción | E181: Dirección De Responsabilidades Y Evolución Patrimonial | F181: Concientización En Las Declaraciones Patrimoniales Y De Intereses | G181: Realización De Declaraciones Patrimoniales Iniciales, De Modificación Y De Conclusión Porcentaje En La Realización De Declaraciones Patrimoniales Iniciales, De Modificación Y De Conclusión, Realizadas | H181: Número De Declaraciones Patrimoniales De Inicio, De Modificación Y De Conclusión Realizadas | I181: 0 | J181: 1500
A182: Secretaría De La Contraloría Municipal Y Combate A La CorrupciónDirección De Responsabilidades Y Evolución Patrimonial2Modelo Optimo Para La Sustanciación Y Resolución De Procedimientos | B182: Secretaría De La Contraloría Municipal Y Combate A La CorrupciónDirección De Responsabilidades Y Evolución Patrimonial2 | C182: =COUNTIF($E$2:E182,E182:E182) -> 2 | D182: Secretaría De La Contraloría Municipal Y Combate A La Corrupción | E182: Dirección De Responsabilidades Y Evolución Patrimonial | F182: Modelo Optimo Para La Sustanciación Y Resolución De Procedimientos | G182: Reducir Tiempos De Resoluciones, Sin Generar Menoscabo En Las Garantías De Los Investigados | H182: Número De Resoluciones Que Se Emitan Al Abatir Tiempos | I182: 0 | J182: 100
A183: Secretaría De La Contraloría Municipal Y Combate A La CorrupciónDirección De Responsabilidades Y Evolución Patrimonial3Optimizar El Trabajo Eficiente | B183: Secretaría De La Contraloría Municipal Y Combate A La CorrupciónDirección De Responsabilidades Y Evolución Patrimonial3 | C183: =COUNTIF($E$2:E183,E183:E183) -> 3 | D183: Secretaría De La Contraloría Municipal Y Combate A La Corrupción | E183: Dirección De Responsabilidades Y Evolución Patrimonial | F183: Optimizar El Trabajo Eficiente | G183: Optimizar La Distribución De Tareas Para El Flujo De Integración De Expedientes Mas Eficiente | H183: Número De Expedientes O Tareas Asignada A Cada Persona | I183: 0 | J183: 100
A184: Secretaría De La Contraloría Municipal Y Combate A La CorrupciónSubdirección De Auditoría Financiera Y De Desempeño1Actas Circunstanciadas | B184: Secretaría De La Contraloría Municipal Y Combate A La CorrupciónSubdirección De Auditoría Financiera Y De Desempeño1 | C184: =COUNTIF($E$2:E184,E184:E184) -> 1 | D184: Secretaría De La Contraloría Municipal Y Combate A La Corrupción | E184: Subdirección De Auditoría Financiera Y De Desempeño | F184: Actas Circunstanciadas | G184: Actas Circunstanciadas Realizadas | H184: Número De Actas Circunstanciadas Realizadas | I184: 0 | J184: 10
A185: Secretaría De La Contraloría Municipal Y Combate A La CorrupciónSubdirección De Auditoría Financiera Y De Desempeño2Capacitación En Formatos De Entrega Recepción | B185: Secretaría De La Contraloría Municipal Y Combate A La CorrupciónSubdirección De Auditoría Financiera Y De Desempeño2 | C185: =COUNTIF($E$2:E185,E185:E185) -> 2 | D185: Secretaría De La Contraloría Municipal Y Combate A La Corrupción | E185: Subdirección De Auditoría Financiera Y De Desempeño | F185: Capacitación En Formatos De Entrega Recepción | G185: Capacitación En Formatos De Entrega Recepción Realizadas | H185: Cantidad De Capacitaciones En Formatos De Entrega-Recepción Realizadas | I185: 0 | J185: 15
A186: Secretaría De La Contraloría Municipal Y Combate A La CorrupciónSubdirección De Auditoría Financiera Y De Desempeño3Procedimientos De Aclaración Derivados De La Entrega-Recepción | B186: Secretaría De La Contraloría Municipal Y Combate A La CorrupciónSubdirección De Auditoría Financiera Y De Desempeño3 | C186: =COUNTIF($E$2:E186,E186:E186) -> 3 | D186: Secretaría De La Contraloría Municipal Y Combate A La Corrupción | E186: Subdirección De Auditoría Financiera Y De Desempeño | F186: Procedimientos De Aclaración Derivados De La Entrega-Recepción | G186: Procedimientos De Aclaración Derivados De La Entrega-Recepción Concluidos | H186: Número De Procedimientos De Aclaración Derivados De La Entrega-Recepción Concluidos | I186: 0 | J186: 10
A187: Secretaría De La Contraloría Municipal Y Combate A La CorrupciónSubdirección De Auditoría Financiera Y De Desempeño4Proceso De Entrega-Recepción | B187: Secretaría De La Contraloría Municipal Y Combate A La CorrupciónSubdirección De Auditoría Financiera Y De Desempeño4 | C187: =COUNTIF($E$2:E187,E187:E187) -> 4 | D187: Secretaría De La Contraloría Municipal Y Combate A La Corrupción | E187: Subdirección De Auditoría Financiera Y De Desempeño | F187: Proceso De Entrega-Recepción | G187: Actas De Entrega-Recepción Realizadas | H187: Número De Actas De Entrega- Recepción Realizadas | I187: 92 | J187: 24
A188: Secretaría De Obras PúblicasSubdirección De Mantenimiento1Mantenimiento A Escuelas | B188: Secretaría De Obras PúblicasSubdirección De Mantenimiento1 | C188: =COUNTIF($E$2:E188,E188:E188) -> 1 | D188: Secretaría De Obras Públicas | E188: Subdirección De Mantenimiento | F188: Mantenimiento A Escuelas | G188: N° De Solicitudes Recibidas De Instituciones Académicas - Escolares Intervenidas/N° De Solicitudes Atendidas | H188: Solicitudes Atendidas | I188: 0 | J188: 216
A189: Secretaría De Obras PúblicasSubdirección De Mantenimiento2Señalización Horizontal Y Vertical | B189: Secretaría De Obras PúblicasSubdirección De Mantenimiento2 | C189: =COUNTIF($E$2:E189,E189:E189) -> 2 | D189: Secretaría De Obras Públicas | E189: Subdirección De Mantenimiento | F189: Señalización Horizontal Y Vertical | G189: Porcentaje De Colonias Intervenidas Con Señalización Horizontal Y Vertical | H189: N° Colonias Intervenidas | I189: 0 | J189: 100
A190: Secretaría De Obras PúblicasSubdirección De Mantenimiento3Mantenimiento A Edificios | B190: Secretaría De Obras PúblicasSubdirección De Mantenimiento3 | C190: =COUNTIF($E$2:E190,E190:E190) -> 3 | D190: Secretaría De Obras Públicas | E190: Subdirección De Mantenimiento | F190: Mantenimiento A Edificios | G190: Porcentaje De Solicitudes Atendidas Al Mantenimiento A Edificios Y Espacios Públicos | H190: Solicitudes Atendidas | I190: 0 | J190: 300
A191: Secretaría De Obras PúblicasSubdirección De Mantenimiento4Intervenciones Al Entorno Urbano | B191: Secretaría De Obras PúblicasSubdirección De Mantenimiento4 | C191: =COUNTIF($E$2:E191,E191:E191) -> 4 | D191: Secretaría De Obras Públicas | E191: Subdirección De Mantenimiento | F191: Intervenciones Al Entorno Urbano | G191: Porcentaje De Colonias Intervenidas En Atención A Servicios Generales Al Entorno Urbano | H191: N° Colonias Intervenidas | I191: 0 | J191: 50
A192: Secretaría De Obras PúblicasSubdirección De Control De La Edificación Y Ordenamiento Territorial1Programa De Inspección Y Vigilancia De Tramites Y Licencias De Construcción | B192: Secretaría De Obras PúblicasSubdirección De Control De La Edificación Y Ordenamiento Territorial1 | C192: =COUNTIF($E$2:E192,E192:E192) -> 1 | D192: Secretaría De Obras Públicas | E192: Subdirección De Control De La Edificación Y Ordenamiento Territorial | F192: Programa De Inspección Y Vigilancia De Tramites Y Licencias De Construcción | G192: Número De Visitas Realizadas Para Verificar Que Cuenten Con Licencias De Construcción, Y Lo Establecido En El Reglamento De Construcción | H192: Número De Visitas | I192: 2421 | J192: 2500
A193: Secretaría De Obras PúblicasSubdirección De Control De La Edificación Y Ordenamiento Territorial2Trámites Y Servicios | B193: Secretaría De Obras PúblicasSubdirección De Control De La Edificación Y Ordenamiento Territorial2 | C193: =COUNTIF($E$2:E193,E193:E193) -> 2 | D193: Secretaría De Obras Públicas | E193: Subdirección De Control De La Edificación Y Ordenamiento Territorial | F193: Trámites Y Servicios | G193: Número De Trámites Concluidos | H193: Trámites | I193: 2289 | J193: 2300
A194: Secretaría De Obras PúblicasDirección De Construcción Y Mantenimiento1Programa De Urbanización | B194: Secretaría De Obras PúblicasDirección De Construcción Y Mantenimiento1 | C194: =COUNTIF($E$2:E194,E194:E194) -> 1 | D194: Secretaría De Obras Públicas | E194: Dirección De Construcción Y Mantenimiento | F194: Programa De Urbanización | G194: Porcentaje En La Realización Y Ejecución De Obra Pública, Para Mejoras Del Municipio | H194: Número De Obras Realizadas | I194: 240 | J194: 250
A195: Secretaría De Obras PúblicasDirección De Presupuestos Y Contratación De Obra Pública1 | B195: =D195&E195&C195 -> Secretaría De Obras PúblicasDirección De Presupuestos Y Contratación De Obra Pública1 | C195: =COUNTIF($E$2:E195,E195:E195) -> 1 | D195: Secretaría De Obras Públicas | E195: Dirección De Presupuestos Y Contratación De Obra Pública
A196: Secretaría De Obras PúblicasDirección De Presupuestos Y Contratación De Obra Pública2 | B196: Secretaría De Obras PúblicasDirección De Presupuestos Y Contratación De Obra Pública2 | C196: =COUNTIF($E$2:E196,E196:E196) -> 2 | D196: Secretaría De Obras Públicas | E196: Dirección De Presupuestos Y Contratación De Obra Pública
A197: Secretaría De Planificación, Análisis Y Gestión UrbanaDirección De Gestión Territorial Y Planeación Urbana 1Plan Municipal De Regularización De Predios | B197: Secretaría De Planificación, Análisis Y Gestión UrbanaDirección De Gestión Territorial Y Planeación Urbana 1 | C197: =COUNTIF($E$2:E197,E197:E197) -> 1 | D197: Secretaría De Planificación, Análisis Y Gestión Urbana | E197: Dirección De Gestión Territorial Y Planeación Urbana | F197: Plan Municipal De Regularización De Predios | G197: Numero De Títulos Emitidos En Predios Irregulares De San Pedro Tlaquepaque | H197: Títulos Emitidos | I197: 600 | J197: 900
A198: Secretaría De Planificación, Análisis Y Gestión UrbanaDepartamento De Planeación Urbana1Instrumentos De Planeación Urbana Y De Ordenamiento Ecológico | B198: Secretaría De Planificación, Análisis Y Gestión UrbanaDepartamento De Planeación Urbana1 | C198: =COUNTIF($E$2:E198,E198:E198) -> 1 | D198: Secretaría De Planificación, Análisis Y Gestión Urbana | E198: Departamento De Planeación Urbana | F198: Instrumentos De Planeación Urbana Y De Ordenamiento Ecológico | G198: Porcentaje Del Número De Procesos Concluidos De Los Instrumentos De Planeación Urbana Y De Ordenamiento Ecológico | H198: Proceso Concluido | I198: 0 | J198: 6
A199: Secretaría De Planificación, Análisis Y Gestión UrbanaDirección De Banco Integrado De Proyectos Y Programas1Seguimiento De Actividades De Las Mesas De Gestión Metropolitanas Ante Imeplan | B199: Secretaría De Planificación, Análisis Y Gestión UrbanaDirección De Banco Integrado De Proyectos Y Programas1 | C199: =COUNTIF($E$2:E199,E199:E199) -> 1 | D199: Secretaría De Planificación, Análisis Y Gestión Urbana | E199: Dirección De Banco Integrado De Proyectos Y Programas | F199: Seguimiento De Actividades De Las Mesas De Gestión Metropolitanas Ante Imeplan | G199: Porcentaje De Reportes Mensuales Generados Por Las Mesas De Gestión Y Coordinación Activas | H199: Número De Reportes Mensuales Generados | I199: 180 | J199: 192
A200: Secretaría De SaludSubdirección De Enseñanza1Enseñanza Continua | B200: Secretaría De SaludSubdirección De Enseñanza1 | C200: =COUNTIF($E$2:E200,E200:E200) -> 1 | D200: Secretaría De Salud | E200: Subdirección De Enseñanza | F200: Enseñanza Continua | G200: Numero De Cesiones Programadas Porcentaje De Personal Capacitado % | H200: Numero De Sesión Realizada Porcentaje | I200: 1 | J200: 12
... 400 more rows
